{"text_format":"1","workbook":"xlsx","n_sheets":2,"sheets":["Calendar","data"],"not_rendered":{"charts":0,"images":0,"macros":1,"external_links":0,"defined_names":8,"comments":2,"pivot_tables":0},"unopened":[],"bounds":{"document_bytes":16777216,"sheet_cells":100000,"rows_first":2000,"rows_last":500,"rows_between":2000,"halvings":0,"cell_chars":16384,"cell_head_chars":4096},"cells_cut":0,"cells_raw":0,"read":"whole","date_system":"1900"}

{"sheet":"Calendar","index":0,"n_rows":380,"n_cols":34,"rows_kept":380,"cut":false,"hidden":false,"merged":[[10,19,10,25],[42,1,42,7],[54,11,54,16],[42,10,42,16],[42,19,42,25],[15,19,15,25],[24,1,24,7],[24,10,24,16],[24,19,24,25],[33,1,33,7],[57,11,57,16],[2,19,2,25],[33,10,33,16],[33,19,33,25],[5,16,5,17],[6,16,6,17],[7,16,7,17],[8,7,8,10],[15,1,15,7],[15,10,15,16],[12,2,12,26],[55,11,55,16],[62,1,62,7],[55,21,55,25],[56,21,56,25],[57,21,57,25],[58,21,58,25],[58,11,58,16],[61,1,61,26],[56,11,56,16]]}
[null,null,null,null,null,null,"FY 2018 - 2019 Private School Calendar"]
[null,"SAVE TO YOUR HARD DRIVE FIRST, DO NOT WORK ON THE WEB! "]
[1,"Program Information: (Select your program code from the dropdown)",null,null,null,null,null,null,null,null,null,null,null,null,null,null,null,null,null,"June 2018"]
[null,null,null,null,null,null,null,null,1,null,null,null,null,null,null,null,null,null,null,"S","M","T","W","T","F","S"]
[null,null,null,null,null,null,null,null,null,null,null,null,null,null,null,null,null,null,null,null,null,null,null,null,1,2,"June 2018"]
[null,"Program Code:",null,null,null,null,null,null,null,null,null,null,"Annual Rate: ",null,null,null,{"$f":"IF($I$6=\"\",\"\",VLOOKUP($I$6,rates,5))","v":""},null,null,3,4,5,6,7,8,9,"Total Days"]
[null,"Private School Name:",null,null,null,null,null,{"$f":"IF($I$6=\"\",\"\",VLOOKUP($I$6,rates,3))","v":""},null,null,null,null,"Daily Rate:",null,null,null,{"$f":"IF($I$6=\"\",\"\",VLOOKUP($I$6,rates,6))","v":""},null,null,10,11,12,13,14,15,16,"IN Session"]
[null,"Program Name:",null,null,null,null,null,{"$f":"IF($I$6=\"\",\"\",VLOOKUP($I$6,rates,4))","v":""},null,null,null,null,"Program Type:",null,null,null,{"$f":"IF($I$6=\"\",\"\",VLOOKUP($I$6,rates,2))","v":""},null,null,17,18,19,20,21,22,23,{"$f":"IF(AND(I6<>\"\",Q8=\"Summer\"),COUNTA(T5:Z10),0)","v":0}]
[null,"OSD Approved Total Days:",null,null,null,null,null,{"$f":"IF($I$6=\"\",\"\",IF(VLOOKUP($I$6,rates,7)=\"\",\"No Calendar\",VLOOKUP($I$6,rates,7)))","v":""},null,null,null,null,null,null,null,null,null,null,null,24,25,26,27,28,29,30]
[null,null,null,null,null,null,null,null,null," "]
[2,"Calendar Information:",null,null,null,null,null,null,null,null,null,null,null,null,null,null,null,null,null,"Note: For summer programs operating  in June 2018 - Delete the dates school is NOT open."]
[null,"A. ","If program operates 365 days, complete Other Information below and proceed to saving the file instructions."]
[null,"B. ","Programs operating less than 365 days, delete dates school is not in session. Complete Other Information and proceed to saving the file instructions below.  (ONLY for those programs operating summer programs starting in June 2018 see \"Note\" above)"]
[]
[null,null,null,null,null,null,null,null,null,null,null,null,null,null,null,null,null,null,null,null,null,null,null,null,null,null,null,null,null,null,null,"Col","Row",{"$f":"I6","v":0}]
[null,"July 2018",null,null,null,null,null,null,null,null,"August 2018",null,null,null,null,null,null,null,null,"September 2018",null,null,null,null,null,null,null,null,null,null,"2018-07-01","B",18,{"$f":"IF(INDIRECT(AF16&AG16)=\"\",\"\",AE16)","v":"2018-07-01"}]
[null,"S","M","T","W","T","F","S",null,null,"S","M","T","W","T","F","S",null,null,"S","M","T","W","T","F","S",null,null,null,null,"2018-07-02","C",18,{"$f":"IF(INDIRECT(AF17&AG17)=\"\",\"\",AE17)","v":"2018-07-02"}]
[null,1,2,3,4,5,6,7,null,null,null,null,null,1,2,3,4,null,null,null,null,null,null,null,null,1,null,null,null,null,"2018-07-03","D",18,"2018-07-03"]
[null,8,9,10,11,12,13,14,"July 2018",null,5,6,7,8,9,10,11,"Aug 2018",null,2,3,4,5,6,7,8,"Sept 2018",null,null,null,"2018-07-04","E",18,"2018-07-04"]
[null,15,16,17,18,19,20,21,"Total Days",null,12,13,14,15,16,17,18,"Total Days",null,9,10,11,12,13,14,15,"Total Days",null,null,null,"2018-07-05","F",18,"2018-07-05"]
[null,22,23,24,25,26,27,28,"in Session",null,19,20,21,22,23,24,25,"in Session",null,16,17,18,19,20,21,22,"in Session",null,null,null,"2018-07-06","G",18,"2018-07-06"]
[null,29,30,31,null,null,null,null,{"$f":"COUNTA(B18:H23)","v":31},null,26,27,28,29,30,31,null,{"$f":"COUNTA(K18:Q23)","v":31},null,23,24,25,26,27,28,29,{"$f":"COUNTA(T18:Z23)","v":30},null,null,null,"2018-07-07","H",18,"2018-07-07"]
[null,null,null,null,null,null,null,null,null,null,null,null,null,null,null,null,null,null,null,30,null,null,null,null,null,null,null,null,null,null,"2018-07-08","B",19,"2018-07-08"]
[null,null,null,null,null,null,null,null,null,null,null,null,null,null,null,null,null,null,null,null,null,null,null,null,null,null,null,null,null,null,"2018-07-09","C",19,"2018-07-09"]
[null,"October 2018",null,null,null,null,null,null,null,null,"November 2018",null,null,null,null,null,null,null,null,"December 2018",null,null,null,null,null,null,null,null,null,null,"2018-07-10","D",19,"2018-07-10"]
[null,"S","M","T","W","T","F","S",null,null,"S","M","T","W","T","F","S",null,null,"S","M","T","W","T","F","S",null,null,null,null,"2018-07-11","E",19,"2018-07-11"]
[null,null,1,2,3,4,5,6,null,null,null,null,null,null,1,2,3,null,null,null,null,null,null,null,null,1,null,null,null,null,"2018-07-12","F",19,"2018-07-12"]
[null,7,8,9,10,11,12,13,"Oct 2018",null,4,5,6,7,8,9,10,"Nov 2018",null,2,3,4,5,6,7,8,"Dec 2018",null,null,null,"2018-07-13","G",19,"2018-07-13"]
[null,14,15,16,17,18,19,20,"Total Days",null,11,12,13,14,15,16,17,"Total Days",null,9,10,11,12,13,14,15,"Total Days",null,null,null,"2018-07-14","H",19,"2018-07-14"]
[null,21,22,23,24,25,26,27,"in Session",null,18,19,20,21,22,23,24,"in Session",null,16,17,18,19,20,21,22,"in Session",null,null,null,"2018-07-15","B",20,"2018-07-15"]
[null,28,29,30,31,null,null,null,{"$f":"COUNTA(B27:H32)","v":31},null,25,26,27,28,29,30,null,{"$f":"COUNTA(K27:Q32)","v":30},null,23,24,25,26,27,28,29,{"$f":"COUNTA(T27:Z32)","v":31},null,null,null,"2018-07-16","C",20,"2018-07-16"]
[null,null,null,null,null,null,null,null,null,null,null,null,null,null,null,null,null,null,null,30,31,null,null,null,null,null,null,null,null,null,"2018-07-17","D",20,"2018-07-17"]
[null,null,null,null,null,null,null,null,null,null,null,null,null,null,null,null,null,null,null,null,null,null,null,null,null,null,null,null,null,null,"2018-07-18","E",20,"2018-07-18"]
[null,"January 2019",null,null,null,null,null,null,null,null,"Feburary 2019",null,null,null,null,null,null,null,null,"March 2019",null,null,null,null,null,null,null,null,null,null,"2018-07-19","F",20,"2018-07-19"]
[null,"S","M","T","W","T","F","S",null,null,"S","M","T","W","T","F","S",null,null,"S","M","T","W","T","F","S",null,null,null,null,"2018-07-20","G",20,"2018-07-20"]
[null,null,null,1,2,3,4,5,null,7,null,null,null,null,null,1,2,null,null,null,null,null,null,null,1,2,null,null,null,null,"2018-07-21","H",20,"2018-07-21"]
[null,6,7,8,9,10,11,12,"Jan 2019",null,3,4,5,6,7,8,9,"Feb 2019",null,3,4,5,6,7,8,9,"Mar 2019",null,null,null,"2018-07-22","B",21,"2018-07-22"]
[null,13,14,15,16,17,18,19,"Total Days",null,10,11,12,13,14,15,16,"Total Days",null,10,11,12,13,14,15,16,"Total Days",null,null,null,"2018-07-23","C",21,"2018-07-23"]
[null,20,21,22,23,24,25,26,"in Session",null,17,18,19,20,21,22,23,"in Session",null,17,18,19,20,21,22,23,"in Session",null,null,null,"2018-07-24","D",21,"2018-07-24"]
[null,27,28,29,30,31,null,null,{"$f":"COUNTA(B36:H41)","v":31},null,24,25,26,27,28,null,null,{"$f":"COUNTA(K36:Q41)","v":28},null,24,25,26,27,28,29,30,{"$f":"COUNTA(T36:Z41)","v":31},null,null,null,"2018-07-25","E",21,"2018-07-25"]
[null,null,null,null,null,null,null,null,null,null,null,null,null,null,null,null,null,null,null,31,null,null,null,null,null,null,null,null,null,null,"2018-07-26","F",21,"2018-07-26"]
[null,null,null,null,null,null,null,null,null,null,null,null,null,null,null,null,null,null,null,null,null,null,null,null,null,null,null,null,null,null,"2018-07-27","G",21,"2018-07-27"]
[null,"April 2019",null,null,null,null,null,null,null,null,"May 2019",null,null,null,null,null,null,null,null,"June 2019",null,null,null,null,null,null,null,null,null,null,"2018-07-28","H",21,"2018-07-28"]
[null,"S","M","T","W","T","F","S",null,null,"S","M","T","W","T","F","S",null,null,"S","M","T","W","T","F","S",null,null,null,null,"2018-07-29","B",22,"2018-07-29"]
[null,null,1,2,3,4,5,6,null,null,null,null,null,1,2,3,4,null,null,null,null,null,null,null,null,1,null,null,null,null,"2018-07-30","C",22,"2018-07-30"]
[null,7,8,9,10,11,12,13,"April 2019",null,5,6,7,8,9,10,11,"May 2019",null,2,3,4,5,6,7,8,"June 2019",null,null,null,"2018-07-31","D",22,"2018-07-31"]
[null,14,15,16,17,18,19,20,"Total Days",null,12,13,14,15,16,17,18,"Total Days",null,9,10,11,12,13,14,15,"Total Days",null,null,null,"2018-08-01","N",18,"2018-08-01"]
[null,21,22,23,24,25,26,27,"in Session",null,19,20,21,22,23,24,25,"in Session",null,16,17,18,19,20,21,22,"In Session",null,null,null,"2018-08-02","O",18,"2018-08-02"]
[null,28,29,30,null,null,null,null,{"$f":"COUNTA(B45:H50)","v":30},null,26,27,28,29,30,31,null,{"$f":"COUNTA(K45:Q50)","v":31},null,23,24,25,26,27,28,29,{"$f":"COUNTA(T45:Z50)","v":30},null,null,null,"2018-08-03","P",18,"2018-08-03"]
[null,null,null,null,null,null,null,null,null,null,null,null,null,null,null,null,null,null,null,30,null,null,null,null,null,null,null,null,null,null,"2018-08-04","Q",18,"2018-08-04"]
[null,null,null,null,null,null,null,null,null,null,null,null,null,null,null,null,null,null,null,null,null,null,null,null,null,null,null,"  ",null,null,"2018-08-05","K",19,"2018-08-05"]
[null,{"$f":"AA8+I22+R22+AA22+I31+R31+AA31+I40+R40+AA40+I49+R49+AA49","v":365},null,null,null,null,null,null,"Grand Total of Days is in Session for the Entire Fiscal Year: ",null,null,null,null,null,null,null,null,null,null,null,null,null,null,{"$f":"B52","v":365},null,null,null,null,null,null,"2018-08-06","L",19,"2018-08-06"]
[null,null,null,null,null,null,null,null,{"$f":"IF(B52>H9,\"Total open days > than appproved open days\",IF(H9=\"No Calendar\",\"No Calendar, please submit Calendar first.\",IF(H9=\"\",\"\",\"\")))","v":""},null,null,null,null,null,null,null,null,null,null,null,null,null,null,null,null,null,null,null,null,null,"2018-08-07","M",19,"2018-08-07"]
[3,"Other Information",null,null,null,null,null,null,null,null,null,null,null,null,null,null,null,null,null,null,null,null,null,null,null,null,null,null,null,null,"2018-08-08","N",19,"2018-08-08"]
[null,null,null,null,null,null,null,null,null,null,null,null,null,null,null,null,null,null,null,null,null,null,null,null,null,null,null,null,null,null,"2018-08-09","O",19,"2018-08-09"]
[null,null,"Printed Name of Person Completing Form:",null,null,null,null,null,null,null,null,null,null,null,null,null,null,null,"Date:",null,null,null,null,null,null,null,null,null,null,null,"2018-08-10","P",19,"2018-08-10"]
[null,null,"Title of Person Completing Form:",null,null,null,null,null,null,null,null,null,null,null,null,null,null,null,"Phone#:",null,null,null,null,null,null,null,null,null,null,null,"2018-08-11","Q",19,"2018-08-11"]
[null,null,"Contact person if not same as person above:",null,null,null,null,null,null,null,null,null,null,null,null,null,null,null,"Fax #:",null,null,null,null,null,null,null,null,null,null,null,"2018-08-12","K",20,"2018-08-12"]
[null,null,"E-Mail:",null,null,null,null,null,null,null,null,null,null,null,null,null,null,null,null,null,null,null,null,null,null,null,null,null,null,null,"2018-08-13","L",20,"2018-08-13"]
[null,null,null,null,null,null,null,null,null,null,null,null,null,null,null,null,null,null,null,null,null,null,null,null,null,null,null,null,null,null,"2018-08-14","M",20,"2018-08-14"]
[4,"Saving the file",null,null,null,null,null,null,null,null,null,null,null,null,null,null,null,null,null,null,null,null,null,null,null,null,null,null,null,null,"2018-08-15","N",20,"2018-08-15"]
[null,"Once you have entered the dates that are open/closed, click the \"Save Data\" button located in the upper right hand corner of this sheet. The file will be automatically saved as \"18CBxxxxx.xls\" (xxxxx represents the program code). Please email a copy of this file to Aquarius Wise at ",null,null,null,null,null,null,null,null,null,null,null,null,null,null,null,null,null,null,null,null,null,null,null,null,null,null,null,null,"2018-08-16","O",20,"2018-08-16"]
[null,"awise@doe.mass.edu.",null,null,null,null,null,null,null,null,null,null,null,null,null,null,null,null,null,null,null,null,null,null,null,null,null,null,null,null,"2018-08-17","P",20,"2018-08-17"]
[null,null,null,null,null,null,null,null,null,null,null,null,null,null,null,null,null,null,null,null,null,null,null,null,null,null,null,null,null,null,"2018-08-18","Q",20,"2018-08-18"]
[null,null,null,null,null,null,null,null,null,null,null,null,null,null,null,null,null,null,null,null,null,null,null,null,null,null,null,null,null,null,"2018-08-19","K",21,"2018-08-19"]
[null,null,null,null,null,null,null,null,null,null,null,null,null,null,null,null,null,null,null,null,null,null,null,null,null,null,null,null,null,null,"2018-08-20","L",21,"2018-08-20"]
[null,null,null,null,null,null,null,null,null,null,null,null,null,null,null,null,null,null,null,null,null,null,null,null,null,null,null,null,null,null,"2018-08-21","M",21,"2018-08-21"]
[null,null,null,null,null,null,null,null,null,null,null,null,null,null,null,null,null,null,null,null,null,null,null,null,null,null,null,null,null,null,"2018-08-22","N",21,"2018-08-22"]
[null,null,null,null,null,null,null,null,null,null,null,null,null,null,null,null,null,null,null,null,null,null,null,null,null,null,null,null,null,null,"2018-08-23","O",21,"2018-08-23"]
[null,null,null,null,null,null,null,null,null,null,null,null,null,null,null,null,null,null,null,null,null,null,null,null,null,null,null,null,null,null,"2018-08-24","P",21,"2018-08-24"]
[null,null,null,null,null,null,null,null,null,null,null,null,null,null,null,null,null,null,null,null,null,null,null,null,null,null,null,null,null,null,"2018-08-25","Q",21,"2018-08-25"]
[null,null,null,null,null,null,null,null,null,null,null,null,null,null,null,null,null,null,null,null,null,null,null,null,null,null,null,null,null,null,"2018-08-26","K",22,"2018-08-26"]
[null,null,null,null,null,null,null,null,null,null,null,null,null,null,null,null,null,null,null,null,null,null,null,null,null,null,null,null,null,null,"2018-08-27","L",22,"2018-08-27"]
[null,null,null,null,null,null,null,null,null,null,null,null,null,null,null,null,null,null,null,null,null,null,null,null,null,null,null,null,null,null,"2018-08-28","M",22,"2018-08-28"]
[null,null,null,null,null,null,null,null,null,null,null,null,null,null,null,null,null,null,null,null,null,null,null,null,null,null,null,null,null,null,"2018-08-29","N",22,"2018-08-29"]
[null,null,null,null,null,null,null,null,null,null,null,null,null,null,null,null,null,null,null,null,null,null,null,null,null,null,null,null,null,null,"2018-08-30","O",22,"2018-08-30"]
[null,null,null,null,null,null,null,null,null,null,null,null,null,null,null,null,null,null,null,null,null,null,null,null,null,null,null,null,null,null,"2018-08-31","P",22,"2018-08-31"]
[null,null,null,null,null,null,null,null,null,null,null,null,null,null,null,null,null,null,null,null,null,null,null,null,null,null,null,null,null,null,"2018-09-01","Z",18,"2018-09-01"]
[null,null,null,null,null,null,null,null,null,null,null,null,null,null,null,null,null,null,null,null,null,null,null,null,null,null,null,null,null,null,"2018-09-02","T",19,"2018-09-02"]
[null,null,null,null,null,null,null,null,null,null,null,null,null,null,null,null,null,null,null,null,null,null,null,null,null,null,null,null,null,null,"2018-09-03","U",19,"2018-09-03"]
[null,null,null,null,null,null,null,null,null,null,null,null,null,null,null,null,null,null,null,null,null,null,null,null,null,null,null,null,null,null,"2018-09-04","V",19,{"$f":"IF(INDIRECT(AF81&AG81)=\"\",\"\",AE81)","v":"2018-09-04"}]
[null,null,null,null,null,null,null,null,null,null,null,null,null,null,null,null,null,null,null,null,null,null,null,null,null,null,null,null,null,null,"2018-09-05","W",19,"2018-09-05"]
[null,null,null,null,null,null,null,null,null,null,null,null,null,null,null,null,null,null,null,null,null,null,null,null,null,null,null,null,null,null,"2018-09-06","X",19,"2018-09-06"]
[null,null,null,null,null,null,null,null,null,null,null,null,null,null,null,null,null,null,null,null,null,null,null,null,null,null,null,null,null,null,"2018-09-07","Y",19,"2018-09-07"]
[null,null,null,null,null,null,null,null,null,null,null,null,null,null,null,null,null,null,null,null,null,null,null,null,null,null,null,null,null,null,"2018-09-08","Z",19,"2018-09-08"]
[null,null,null,null,null,null,null,null,null,null,null,null,null,null,null,null,null,null,null,null,null,null,null,null,null,null,null,null,null,null,"2018-09-09","T",20,"2018-09-09"]
[null,null,null,null,null,null,null,null,null,null,null,null,null,null,null,null,null,null,null,null,null,null,null,null,null,null,null,null,null,null,"2018-09-10","U",20,"2018-09-10"]
[null,null,null,null,null,null,null,null,null,null,null,null,null,null,null,null,null,null,null,null,null,null,null,null,null,null,null,null,null,null,"2018-09-11","V",20,"2018-09-11"]
[null,null,null,null,null,null,null,null,null,null,null,null,null,null,null,null,null,null,null,null,null,null,null,null,null,null,null,null,null,null,"2018-09-12","W",20,"2018-09-12"]
[null,null,null,null,null,null,null,null,null,null,null,null,null,null,null,null,null,null,null,null,null,null,null,null,null,null,null,null,null,null,"2018-09-13","X",20,"2018-09-13"]
[null,null,null,null,null,null,null,null,null,null,null,null,null,null,null,null,null,null,null,null,null,null,null,null,null,null,null,null,null,null,"2018-09-14","Y",20,"2018-09-14"]
[null,null,null,null,null,null,null,null,null,null,null,null,null,null,null,null,null,null,null,null,null,null,null,null,null,null,null,null,null,null,"2018-09-15","Z",20,"2018-09-15"]
[null,null,null,null,null,null,null,null,null,null,null,null,null,null,null,null,null,null,null,null,null,null,null,null,null,null,null,null,null,null,"2018-09-16","T",21,"2018-09-16"]
[null,null,null,null,null,null,null,null,null,null,null,null,null,null,null,null,null,null,null,null,null,null,null,null,null,null,null,null,null,null,"2018-09-17","U",21,"2018-09-17"]
[null,null,null,null,null,null,null,null,null,null,null,null,null,null,null,null,null,null,null,null,null,null,null,null,null,null,null,null,null,null,"2018-09-18","V",21,"2018-09-18"]
[null,null,null,null,null,null,null,null,null,null,null,null,null,null,null,null,null,null,null,null,null,null,null,null,null,null,null,null,null,null,"2018-09-19","W",21,"2018-09-19"]
[null,null,null,null,null,null,null,null,null,null,null,null,null,null,null,null,null,null,null,null,null,null,null,null,null,null,null,null,null,null,"2018-09-20","X",21,"2018-09-20"]
[null,null,null,null,null,null,null,null,null,null,null,null,null,null,null,null,null,null,null,null,null,null,null,null,null,null,null,null,null,null,"2018-09-21","Y",21,"2018-09-21"]
[null,null,null,null,null,null,null,null,null,null,null,null,null,null,null,null,null,null,null,null,null,null,null,null,null,null,null,null,null,null,"2018-09-22","Z",21,"2018-09-22"]
[null,null,null,null,null,null,null,null,null,null,null,null,null,null,null,null,null,null,null,null,null,null,null,null,null,null,null,null,null,null,"2018-09-23","T",22,"2018-09-23"]
[null,null,null,null,null,null,null,null,null,null,null,null,null,null,null,null,null,null,null,null,null,null,null,null,null,null,null,null,null,null,"2018-09-24","U",22,"2018-09-24"]
[null,null,null,null,null,null,null,null,null,null,null,null,null,null,null,null,null,null,null,null,null,null,null,null,null,null,null,null,null,null,"2018-09-25","V",22,"2018-09-25"]
[null,null,null,null,null,null,null,null,null,null,null,null,null,null,null,null,null,null,null,null,null,null,null,null,null,null,null,null,null,null,"2018-09-26","W",22,"2018-09-26"]
[null,null,null,null,null,null,null,null,null,null,null,null,null,null,null,null,null,null,null,null,null,null,null,null,null,null,null,null,null,null,"2018-09-27","X",22,"2018-09-27"]
[null,null,null,null,null,null,null,null,null,null,null,null,null,null,null,null,null,null,null,null,null,null,null,null,null,null,null,null,null,null,"2018-09-28","Y",22,"2018-09-28"]
[null,null,null,null,null,null,null,null,null,null,null,null,null,null,null,null,null,null,null,null,null,null,null,null,null,null,null,null,null,null,"2018-09-29","Z",22,"2018-09-29"]
[null,null,null,null,null,null,null,null,null,null,null,null,null,null,null,null,null,null,null,null,null,null,null,null,null,null,null,null,null,null,"2018-09-30","T",23,"2018-09-30"]
[null,null,null,null,null,null,null,null,null,null,null,null,null,null,null,null,null,null,null,null,null,null,null,null,null,null,null,null,null,null,"2018-10-01","C",27,"2018-10-01"]
[null,null,null,null,null,null,null,null,null,null,null,null,null,null,null,null,null,null,null,null,null,null,null,null,null,null,null,null,null,null,"2018-10-02","D",27,"2018-10-02"]
[null,null,null,null,null,null,null,null,null,null,null,null,null,null,null,null,null,null,null,null,null,null,null,null,null,null,null,null,null,null,"2018-10-03","E",27,"2018-10-03"]
[null,null,null,null,null,null,null,null,null,null,null,null,null,null,null,null,null,null,null,null,null,null,null,null,null,null,null,null,null,null,"2018-10-04","F",27,"2018-10-04"]
[null,null,null,null,null,null,null,null,null,null,null,null,null,null,null,null,null,null,null,null,null,null,null,null,null,null,null,null,null,null,"2018-10-05","G",27,"2018-10-05"]
[null,null,null,null,null,null,null,null,null,null,null,null,null,null,null,null,null,null,null,null,null,null,null,null,null,null,null,null,null,null,"2018-10-06","H",27,"2018-10-06"]
[null,null,null,null,null,null,null,null,null,null,null,null,null,null,null,null,null,null,null,null,null,null,null,null,null,null,null,null,null,null,"2018-10-07","B",28,"2018-10-07"]
[null,null,null,null,null,null,null,null,null,null,null,null,null,null,null,null,null,null,null,null,null,null,null,null,null,null,null,null,null,null,"2018-10-08","C",28,"2018-10-08"]
[null,null,null,null,null,null,null,null,null,null,null,null,null,null,null,null,null,null,null,null,null,null,null,null,null,null,null,null,null,null,"2018-10-09","D",28,"2018-10-09"]
[null,null,null,null,null,null,null,null,null,null,null,null,null,null,null,null,null,null,null,null,null,null,null,null,null,null,null,null,null,null,"2018-10-10","E",28,"2018-10-10"]
[null,null,null,null,null,null,null,null,null,null,null,null,null,null,null,null,null,null,null,null,null,null,null,null,null,null,null,null,null,null,"2018-10-11","F",28,"2018-10-11"]
[null,null,null,null,null,null,null,null,null,null,null,null,null,null,null,null,null,null,null,null,null,null,null,null,null,null,null,null,null,null,"2018-10-12","G",28,"2018-10-12"]
[null,null,null,null,null,null,null,null,null,null,null,null,null,null,null,null,null,null,null,null,null,null,null,null,null,null,null,null,null,null,"2018-10-13","H",28,"2018-10-13"]
[null,null,null,null,null,null,null,null,null,null,null,null,null,null,null,null,null,null,null,null,null,null,null,null,null,null,null,null,null,null,"2018-10-14","B",29,"2018-10-14"]
[null,null,null,null,null,null,null,null,null,null,null,null,null,null,null,null,null,null,null,null,null,null,null,null,null,null,null,null,null,null,"2018-10-15","C",29,"2018-10-15"]
[null,null,null,null,null,null,null,null,null,null,null,null,null,null,null,null,null,null,null,null,null,null,null,null,null,null,null,null,null,null,"2018-10-16","D",29,"2018-10-16"]
[null,null,null,null,null,null,null,null,null,null,null,null,null,null,null,null,null,null,null,null,null,null,null,null,null,null,null,null,null,null,"2018-10-17","E",29,"2018-10-17"]
[null,null,null,null,null,null,null,null,null,null,null,null,null,null,null,null,null,null,null,null,null,null,null,null,null,null,null,null,null,null,"2018-10-18","F",29,"2018-10-18"]
[null,null,null,null,null,null,null,null,null,null,null,null,null,null,null,null,null,null,null,null,null,null,null,null,null,null,null,null,null,null,"2018-10-19","G",29,"2018-10-19"]
[null,null,null,null,null,null,null,null,null,null,null,null,null,null,null,null,null,null,null,null,null,null,null,null,null,null,null,null,null,null,"2018-10-20","H",29,"2018-10-20"]
[null,null,null,null,null,null,null,null,null,null,null,null,null,null,null,null,null,null,null,null,null,null,null,null,null,null,null,null,null,null,"2018-10-21","B",30,"2018-10-21"]
[null,null,null,null,null,null,null,null,null,null,null,null,null,null,null,null,null,null,null,null,null,null,null,null,null,null,null,null,null,null,"2018-10-22","C",30,"2018-10-22"]
[null,null,null,null,null,null,null,null,null,null,null,null,null,null,null,null,null,null,null,null,null,null,null,null,null,null,null,null,null,null,"2018-10-23","D",30,"2018-10-23"]
[null,null,null,null,null,null,null,null,null,null,null,null,null,null,null,null,null,null,null,null,null,null,null,null,null,null,null,null,null,null,"2018-10-24","E",30,"2018-10-24"]
[null,null,null,null,null,null,null,null,null,null,null,null,null,null,null,null,null,null,null,null,null,null,null,null,null,null,null,null,null,null,"2018-10-25","F",30,"2018-10-25"]
[null,null,null,null,null,null,null,null,null,null,null,null,null,null,null,null,null,null,null,null,null,null,null,null,null,null,null,null,null,null,"2018-10-26","G",30,"2018-10-26"]
[null,null,null,null,null,null,null,null,null,null,null,null,null,null,null,null,null,null,null,null,null,null,null,null,null,null,null,null,null,null,"2018-10-27","H",30,"2018-10-27"]
[null,null,null,null,null,null,null,null,null,null,null,null,null,null,null,null,null,null,null,null,null,null,null,null,null,null,null,null,null,null,"2018-10-28","B",31,"2018-10-28"]
[null,null,null,null,null,null,null,null,null,null,null,null,null,null,null,null,null,null,null,null,null,null,null,null,null,null,null,null,null,null,"2018-10-29","C",31,"2018-10-29"]
[null,null,null,null,null,null,null,null,null,null,null,null,null,null,null,null,null,null,null,null,null,null,null,null,null,null,null,null,null,null,"2018-10-30","D",31,"2018-10-30"]
[null,null,null,null,null,null,null,null,null,null,null,null,null,null,null,null,null,null,null,null,null,null,null,null,null,null,null,null,null,null,"2018-10-31","E",31,"2018-10-31"]
[null,null,null,null,null,null,null,null,null,null,null,null,null,null,null,null,null,null,null,null,null,null,null,null,null,null,null,null,null,null,"2018-11-01","O",27,"2018-11-01"]
[null,null,null,null,null,null,null,null,null,null,null,null,null,null,null,null,null,null,null,null,null,null,null,null,null,null,null,null,null,null,"2018-11-02","P",27,"2018-11-02"]
[null,null,null,null,null,null,null,null,null,null,null,null,null,null,null,null,null,null,null,null,null,null,null,null,null,null,null,null,null,null,"2018-11-03","Q",27,"2018-11-03"]
[null,null,null,null,null,null,null,null,null,null,null,null,null,null,null,null,null,null,null,null,null,null,null,null,null,null,null,null,null,null,"2018-11-04","K",28,"2018-11-04"]
[null,null,null,null,null,null,null,null,null,null,null,null,null,null,null,null,null,null,null,null,null,null,null,null,null,null,null,null,null,null,"2018-11-05","L",28,"2018-11-05"]
[null,null,null,null,null,null,null,null,null,null,null,null,null,null,null,null,null,null,null,null,null,null,null,null,null,null,null,null,null,null,"2018-11-06","M",28,"2018-11-06"]
[null,null,null,null,null,null,null,null,null,null,null,null,null,null,null,null,null,null,null,null,null,null,null,null,null,null,null,null,null,null,"2018-11-07","N",28,{"$f":"IF(INDIRECT(AF145&AG145)=\"\",\"\",AE145)","v":"2018-11-07"}]
[null,null,null,null,null,null,null,null,null,null,null,null,null,null,null,null,null,null,null,null,null,null,null,null,null,null,null,null,null,null,"2018-11-08","O",28,"2018-11-08"]
[null,null,null,null,null,null,null,null,null,null,null,null,null,null,null,null,null,null,null,null,null,null,null,null,null,null,null,null,null,null,"2018-11-09","P",28,"2018-11-09"]
[null,null,null,null,null,null,null,null,null,null,null,null,null,null,null,null,null,null,null,null,null,null,null,null,null,null,null,null,null,null,"2018-11-10","Q",28,"2018-11-10"]
[null,null,null,null,null,null,null,null,null,null,null,null,null,null,null,null,null,null,null,null,null,null,null,null,null,null,null,null,null,null,"2018-11-11","K",29,"2018-11-11"]
[null,null,null,null,null,null,null,null,null,null,null,null,null,null,null,null,null,null,null,null,null,null,null,null,null,null,null,null,null,null,"2018-11-12","L",29,"2018-11-12"]
[null,null,null,null,null,null,null,null,null,null,null,null,null,null,null,null,null,null,null,null,null,null,null,null,null,null,null,null,null,null,"2018-11-13","M",29,"2018-11-13"]
[null,null,null,null,null,null,null,null,null,null,null,null,null,null,null,null,null,null,null,null,null,null,null,null,null,null,null,null,null,null,"2018-11-14","N",29,"2018-11-14"]
[null,null,null,null,null,null,null,null,null,null,null,null,null,null,null,null,null,null,null,null,null,null,null,null,null,null,null,null,null,null,"2018-11-15","O",29,"2018-11-15"]
[null,null,null,null,null,null,null,null,null,null,null,null,null,null,null,null,null,null,null,null,null,null,null,null,null,null,null,null,null,null,"2018-11-16","P",29,"2018-11-16"]
[null,null,null,null,null,null,null,null,null,null,null,null,null,null,null,null,null,null,null,null,null,null,null,null,null,null,null,null,null,null,"2018-11-17","Q",29,"2018-11-17"]
[null,null,null,null,null,null,null,null,null,null,null,null,null,null,null,null,null,null,null,null,null,null,null,null,null,null,null,null,null,null,"2018-11-18","K",30,"2018-11-18"]
[null,null,null,null,null,null,null,null,null,null,null,null,null,null,null,null,null,null,null,null,null,null,null,null,null,null,null,null,null,null,"2018-11-19","L",30,"2018-11-19"]
[null,null,null,null,null,null,null,null,null,null,null,null,null,null,null,null,null,null,null,null,null,null,null,null,null,null,null,null,null,null,"2018-11-20","M",30,"2018-11-20"]
[null,null,null,null,null,null,null,null,null,null,null,null,null,null,null,null,null,null,null,null,null,null,null,null,null,null,null,null,null,null,"2018-11-21","N",30,"2018-11-21"]
[null,null,null,null,null,null,null,null,null,null,null,null,null,null,null,null,null,null,null,null,null,null,null,null,null,null,null,null,null,null,"2018-11-22","O",30,"2018-11-22"]
[null,null,null,null,null,null,null,null,null,null,null,null,null,null,null,null,null,null,null,null,null,null,null,null,null,null,null,null,null,null,"2018-11-23","P",30,"2018-11-23"]
[null,null,null,null,null,null,null,null,null,null,null,null,null,null,null,null,null,null,null,null,null,null,null,null,null,null,null,null,null,null,"2018-11-24","Q",30,"2018-11-24"]
[null,null,null,null,null,null,null,null,null,null,null,null,null,null,null,null,null,null,null,null,null,null,null,null,null,null,null,null,null,null,"2018-11-25","K",31,"2018-11-25"]
[null,null,null,null,null,null,null,null,null,null,null,null,null,null,null,null,null,null,null,null,null,null,null,null,null,null,null,null,null,null,"2018-11-26","L",31,"2018-11-26"]
[null,null,null,null,null,null,null,null,null,null,null,null,null,null,null,null,null,null,null,null,null,null,null,null,null,null,null,null,null,null,"2018-11-27","M",31,"2018-11-27"]
[null,null,null,null,null,null,null,null,null,null,null,null,null,null,null,null,null,null,null,null,null,null,null,null,null,null,null,null,null,null,"2018-11-28","N",31,"2018-11-28"]
[null,null,null,null,null,null,null,null,null,null,null,null,null,null,null,null,null,null,null,null,null,null,null,null,null,null,null,null,null,null,"2018-11-29","O",31,"2018-11-29"]
[null,null,null,null,null,null,null,null,null,null,null,null,null,null,null,null,null,null,null,null,null,null,null,null,null,null,null,null,null,null,"2018-11-30","P",31,"2018-11-30"]
[null,null,null,null,null,null,null,null,null,null,null,null,null,null,null,null,null,null,null,null,null,null,null,null,null,null,null,null,null,null,"2018-12-01","Z",27,"2018-12-01"]
[null,null,null,null,null,null,null,null,null,null,null,null,null,null,null,null,null,null,null,null,null,null,null,null,null,null,null,null,null,null,"2018-12-02","T",28,"2018-12-02"]
[null,null,null,null,null,null,null,null,null,null,null,null,null,null,null,null,null,null,null,null,null,null,null,null,null,null,null,null,null,null,"2018-12-03","U",28,"2018-12-03"]
[null,null,null,null,null,null,null,null,null,null,null,null,null,null,null,null,null,null,null,null,null,null,null,null,null,null,null,null,null,null,"2018-12-04","V",28,"2018-12-04"]
[null,null,null,null,null,null,null,null,null,null,null,null,null,null,null,null,null,null,null,null,null,null,null,null,null,null,null,null,null,null,"2018-12-05","W",28,"2018-12-05"]
[null,null,null,null,null,null,null,null,null,null,null,null,null,null,null,null,null,null,null,null,null,null,null,null,null,null,null,null,null,null,"2018-12-06","X",28,"2018-12-06"]
[null,null,null,null,null,null,null,null,null,null,null,null,null,null,null,null,null,null,null,null,null,null,null,null,null,null,null,null,null,null,"2018-12-07","Y",28,"2018-12-07"]
[null,null,null,null,null,null,null,null,null,null,null,null,null,null,null,null,null,null,null,null,null,null,null,null,null,null,null,null,null,null,"2018-12-08","Z",28,"2018-12-08"]
[null,null,null,null,null,null,null,null,null,null,null,null,null,null,null,null,null,null,null,null,null,null,null,null,null,null,null,null,null,null,"2018-12-09","T",29,"2018-12-09"]
[null,null,null,null,null,null,null,null,null,null,null,null,null,null,null,null,null,null,null,null,null,null,null,null,null,null,null,null,null,null,"2018-12-10","U",29,"2018-12-10"]
[null,null,null,null,null,null,null,null,null,null,null,null,null,null,null,null,null,null,null,null,null,null,null,null,null,null,null,null,null,null,"2018-12-11","V",29,"2018-12-11"]
[null,null,null,null,null,null,null,null,null,null,null,null,null,null,null,null,null,null,null,null,null,null,null,null,null,null,null,null,null,null,"2018-12-12","W",29,"2018-12-12"]
[null,null,null,null,null,null,null,null,null,null,null,null,null,null,null,null,null,null,null,null,null,null,null,null,null,null,null,null,null,null,"2018-12-13","X",29,"2018-12-13"]
[null,null,null,null,null,null,null,null,null,null,null,null,null,null,null,null,null,null,null,null,null,null,null,null,null,null,null,null,null,null,"2018-12-14","Y",29,"2018-12-14"]
[null,null,null,null,null,null,null,null,null,null,null,null,null,null,null,null,null,null,null,null,null,null,null,null,null,null,null,null,null,null,"2018-12-15","Z",29,"2018-12-15"]
[null,null,null,null,null,null,null,null,null,null,null,null,null,null,null,null,null,null,null,null,null,null,null,null,null,null,null,null,null,null,"2018-12-16","T",30,"2018-12-16"]
[null,null,null,null,null,null,null,null,null,null,null,null,null,null,null,null,null,null,null,null,null,null,null,null,null,null,null,null,null,null,"2018-12-17","U",30,"2018-12-17"]
[null,null,null,null,null,null,null,null,null,null,null,null,null,null,null,null,null,null,null,null,null,null,null,null,null,null,null,null,null,null,"2018-12-18","V",30,"2018-12-18"]
[null,null,null,null,null,null,null,null,null,null,null,null,null,null,null,null,null,null,null,null,null,null,null,null,null,null,null,null,null,null,"2018-12-19","W",30,"2018-12-19"]
[null,null,null,null,null,null,null,null,null,null,null,null,null,null,null,null,null,null,null,null,null,null,null,null,null,null,null,null,null,null,"2018-12-20","X",30,"2018-12-20"]
[null,null,null,null,null,null,null,null,null,null,null,null,null,null,null,null,null,null,null,null,null,null,null,null,null,null,null,null,null,null,"2018-12-21","Y",30,"2018-12-21"]
[null,null,null,null,null,null,null,null,null,null,null,null,null,null,null,null,null,null,null,null,null,null,null,null,null,null,null,null,null,null,"2018-12-22","Z",30,"2018-12-22"]
[null,null,null,null,null,null,null,null,null,null,null,null,null,null,null,null,null,null,null,null,null,null,null,null,null,null,null,null,null,null,"2018-12-23","T",31,"2018-12-23"]
[null,null,null,null,null,null,null,null,null,null,null,null,null,null,null,null,null,null,null,null,null,null,null,null,null,null,null,null,null,null,"2018-12-24","U",31,"2018-12-24"]
[null,null,null,null,null,null,null,null,null,null,null,null,null,null,null,null,null,null,null,null,null,null,null,null,null,null,null,null,null,null,"2018-12-25","V",31,"2018-12-25"]
[null,null,null,null,null,null,null,null,null,null,null,null,null,null,null,null,null,null,null,null,null,null,null,null,null,null,null,null,null,null,"2018-12-26","W",31,"2018-12-26"]
[null,null,null,null,null,null,null,null,null,null,null,null,null,null,null,null,null,null,null,null,null,null,null,null,null,null,null,null,null,null,"2018-12-27","X",31,"2018-12-27"]
[null,null,null,null,null,null,null,null,null,null,null,null,null,null,null,null,null,null,null,null,null,null,null,null,null,null,null,null,null,null,"2018-12-28","Y",31,"2018-12-28"]
[null,null,null,null,null,null,null,null,null,null,null,null,null,null,null,null,null,null,null,null,null,null,null,null,null,null,null,null,null,null,"2018-12-29","Z",31,"2018-12-29"]
[null,null,null,null,null,null,null,null,null,null,null,null,null,null,null,null,null,null,null,null,null,null,null,null,null,null,null,null,null,null,"2018-12-30","T",32,"2018-12-30"]
[null,null,null,null,null,null,null,null,null,null,null,null,null,null,null,null,null,null,null,null,null,null,null,null,null,null,null,null,null,null,"2018-12-31","U",32,"2018-12-31"]
[null,null,null,null,null,null,null,null,null,null,null,null,null,null,null,null,null,null,null,null,null,null,null,null,null,null,null,null,null,null,"2019-01-01","D",36,"2019-01-01"]
[null,null,null,null,null,null,null,null,null,null,null,null,null,null,null,null,null,null,null,null,null,null,null,null,null,null,null,null,null,null,"2019-01-02","E",36,"2019-01-02"]
[null,null,null,null,null,null,null,null,null,null,null,null,null,null,null,null,null,null,null,null,null,null,null,null,null,null,null,null,null,null,"2019-01-03","F",36,"2019-01-03"]
[null,null,null,null,null,null,null,null,null,null,null,null,null,null,null,null,null,null,null,null,null,null,null,null,null,null,null,null,null,null,"2019-01-04","G",36,"2019-01-04"]
[null,null,null,null,null,null,null,null,null,null,null,null,null,null,null,null,null,null,null,null,null,null,null,null,null,null,null,null,null,null,"2019-01-05","H",36,"2019-01-05"]
[null,null,null,null,null,null,null,null,null,null,null,null,null,null,null,null,null,null,null,null,null,null,null,null,null,null,null,null,null,null,"2019-01-06","B",37,"2019-01-06"]
[null,null,null,null,null,null,null,null,null,null,null,null,null,null,null,null,null,null,null,null,null,null,null,null,null,null,null,null,null,null,"2019-01-07","C",37,"2019-01-07"]
[null,null,null,null,null,null,null,null,null,null,null,null,null,null,null,null,null,null,null,null,null,null,null,null,null,null,null,null,null,null,"2019-01-08","D",37,"2019-01-08"]
[null,null,null,null,null,null,null,null,null,null,null,null,null,null,null,null,null,null,null,null,null,null,null,null,null,null,null,null,null,null,"2019-01-09","E",37,"2019-01-09"]
[null,null,null,null,null,null,null,null,null,null,null,null,null,null,null,null,null,null,null,null,null,null,null,null,null,null,null,null,null,null,"2019-01-10","F",37,{"$f":"IF(INDIRECT(AF209&AG209)=\"\",\"\",AE209)","v":"2019-01-10"}]
[null,null,null,null,null,null,null,null,null,null,null,null,null,null,null,null,null,null,null,null,null,null,null,null,null,null,null,null,null,null,"2019-01-11","G",37,"2019-01-11"]
[null,null,null,null,null,null,null,null,null,null,null,null,null,null,null,null,null,null,null,null,null,null,null,null,null,null,null,null,null,null,"2019-01-12","H",37,"2019-01-12"]
[null,null,null,null,null,null,null,null,null,null,null,null,null,null,null,null,null,null,null,null,null,null,null,null,null,null,null,null,null,null,"2019-01-13","B",38,"2019-01-13"]
[null,null,null,null,null,null,null,null,null,null,null,null,null,null,null,null,null,null,null,null,null,null,null,null,null,null,null,null,null,null,"2019-01-14","C",38,"2019-01-14"]
[null,null,null,null,null,null,null,null,null,null,null,null,null,null,null,null,null,null,null,null,null,null,null,null,null,null,null,null,null,null,"2019-01-15","D",38,"2019-01-15"]
[null,null,null,null,null,null,null,null,null,null,null,null,null,null,null,null,null,null,null,null,null,null,null,null,null,null,null,null,null,null,"2019-01-16","E",38,"2019-01-16"]
[null,null,null,null,null,null,null,null,null,null,null,null,null,null,null,null,null,null,null,null,null,null,null,null,null,null,null,null,null,null,"2019-01-17","F",38,"2019-01-17"]
[null,null,null,null,null,null,null,null,null,null,null,null,null,null,null,null,null,null,null,null,null,null,null,null,null,null,null,null,null,null,"2019-01-18","G",38,"2019-01-18"]
[null,null,null,null,null,null,null,null,null,null,null,null,null,null,null,null,null,null,null,null,null,null,null,null,null,null,null,null,null,null,"2019-01-19","H",38,"2019-01-19"]
[null,null,null,null,null,null,null,null,null,null,null,null,null,null,null,null,null,null,null,null,null,null,null,null,null,null,null,null,null,null,"2019-01-20","B",39,"2019-01-20"]
[null,null,null,null,null,null,null,null,null,null,null,null,null,null,null,null,null,null,null,null,null,null,null,null,null,null,null,null,null,null,"2019-01-21","C",39,"2019-01-21"]
[null,null,null,null,null,null,null,null,null,null,null,null,null,null,null,null,null,null,null,null,null,null,null,null,null,null,null,null,null,null,"2019-01-22","D",39,"2019-01-22"]
[null,null,null,null,null,null,null,null,null,null,null,null,null,null,null,null,null,null,null,null,null,null,null,null,null,null,null,null,null,null,"2019-01-23","E",39,"2019-01-23"]
[null,null,null,null,null,null,null,null,null,null,null,null,null,null,null,null,null,null,null,null,null,null,null,null,null,null,null,null,null,null,"2019-01-24","F",39,"2019-01-24"]
[null,null,null,null,null,null,null,null,null,null,null,null,null,null,null,null,null,null,null,null,null,null,null,null,null,null,null,null,null,null,"2019-01-25","G",39,"2019-01-25"]
[null,null,null,null,null,null,null,null,null,null,null,null,null,null,null,null,null,null,null,null,null,null,null,null,null,null,null,null,null,null,"2019-01-26","H",39,"2019-01-26"]
[null,null,null,null,null,null,null,null,null,null,null,null,null,null,null,null,null,null,null,null,null,null,null,null,null,null,null,null,null,null,"2019-01-27","B",40,"2019-01-27"]
[null,null,null,null,null,null,null,null,null,null,null,null,null,null,null,null,null,null,null,null,null,null,null,null,null,null,null,null,null,null,"2019-01-28","C",40,"2019-01-28"]
[null,null,null,null,null,null,null,null,null,null,null,null,null,null,null,null,null,null,null,null,null,null,null,null,null,null,null,null,null,null,"2019-01-29","D",40,"2019-01-29"]
[null,null,null,null,null,null,null,null,null,null,null,null,null,null,null,null,null,null,null,null,null,null,null,null,null,null,null,null,null,null,"2019-01-30","E",40,"2019-01-30"]
[null,null,null,null,null,null,null,null,null,null,null,null,null,null,null,null,null,null,null,null,null,null,null,null,null,null,null,null,null,null,"2019-01-31","F",40,"2019-01-31"]
[null,null,null,null,null,null,null,null,null,null,null,null,null,null,null,null,null,null,null,null,null,null,null,null,null,null,null,null,null,null,"2019-02-01","P",36,"2019-02-01"]
[null,null,null,null,null,null,null,null,null,null,null,null,null,null,null,null,null,null,null,null,null,null,null,null,null,null,null,null,null,null,"2019-02-02","Q",36,"2019-02-02"]
[null,null,null,null,null,null,null,null,null,null,null,null,null,null,null,null,null,null,null,null,null,null,null,null,null,null,null,null,null,null,"2019-02-03","K",37,"2019-02-03"]
[null,null,null,null,null,null,null,null,null,null,null,null,null,null,null,null,null,null,null,null,null,null,null,null,null,null,null,null,null,null,"2019-02-04","L",37,"2019-02-04"]
[null,null,null,null,null,null,null,null,null,null,null,null,null,null,null,null,null,null,null,null,null,null,null,null,null,null,null,null,null,null,"2019-02-05","M",37,"2019-02-05"]
[null,null,null,null,null,null,null,null,null,null,null,null,null,null,null,null,null,null,null,null,null,null,null,null,null,null,null,null,null,null,"2019-02-06","N",37,"2019-02-06"]
[null,null,null,null,null,null,null,null,null,null,null,null,null,null,null,null,null,null,null,null,null,null,null,null,null,null,null,null,null,null,"2019-02-07","O",37,"2019-02-07"]
[null,null,null,null,null,null,null,null,null,null,null,null,null,null,null,null,null,null,null,null,null,null,null,null,null,null,null,null,null,null,"2019-02-08","P",37,"2019-02-08"]
[null,null,null,null,null,null,null,null,null,null,null,null,null,null,null,null,null,null,null,null,null,null,null,null,null,null,null,null,null,null,"2019-02-09","Q",37,"2019-02-09"]
[null,null,null,null,null,null,null,null,null,null,null,null,null,null,null,null,null,null,null,null,null,null,null,null,null,null,null,null,null,null,"2019-02-10","K",38,"2019-02-10"]
[null,null,null,null,null,null,null,null,null,null,null,null,null,null,null,null,null,null,null,null,null,null,null,null,null,null,null,null,null,null,"2019-02-11","L",38,"2019-02-11"]
[null,null,null,null,null,null,null,null,null,null,null,null,null,null,null,null,null,null,null,null,null,null,null,null,null,null,null,null,null,null,"2019-02-12","M",38,"2019-02-12"]
[null,null,null,null,null,null,null,null,null,null,null,null,null,null,null,null,null,null,null,null,null,null,null,null,null,null,null,null,null,null,"2019-02-13","N",38,"2019-02-13"]
[null,null,null,null,null,null,null,null,null,null,null,null,null,null,null,null,null,null,null,null,null,null,null,null,null,null,null,null,null,null,"2019-02-14","O",38,"2019-02-14"]
[null,null,null,null,null,null,null,null,null,null,null,null,null,null,null,null,null,null,null,null,null,null,null,null,null,null,null,null,null,null,"2019-02-15","P",38,"2019-02-15"]
[null,null,null,null,null,null,null,null,null,null,null,null,null,null,null,null,null,null,null,null,null,null,null,null,null,null,null,null,null,null,"2019-02-16","Q",38,"2019-02-16"]
[null,null,null,null,null,null,null,null,null,null,null,null,null,null,null,null,null,null,null,null,null,null,null,null,null,null,null,null,null,null,"2019-02-17","K",39,"2019-02-17"]
[null,null,null,null,null,null,null,null,null,null,null,null,null,null,null,null,null,null,null,null,null,null,null,null,null,null,null,null,null,null,"2019-02-18","L",39,"2019-02-18"]
[null,null,null,null,null,null,null,null,null,null,null,null,null,null,null,null,null,null,null,null,null,null,null,null,null,null,null,null,null,null,"2019-02-19","M",39,"2019-02-19"]
[null,null,null,null,null,null,null,null,null,null,null,null,null,null,null,null,null,null,null,null,null,null,null,null,null,null,null,null,null,null,"2019-02-20","N",39,"2019-02-20"]
[null,null,null,null,null,null,null,null,null,null,null,null,null,null,null,null,null,null,null,null,null,null,null,null,null,null,null,null,null,null,"2019-02-21","O",39,"2019-02-21"]
[null,null,null,null,null,null,null,null,null,null,null,null,null,null,null,null,null,null,null,null,null,null,null,null,null,null,null,null,null,null,"2019-02-22","P",39,"2019-02-22"]
[null,null,null,null,null,null,null,null,null,null,null,null,null,null,null,null,null,null,null,null,null,null,null,null,null,null,null,null,null,null,"2019-02-23","Q",39,"2019-02-23"]
[null,null,null,null,null,null,null,null,null,null,null,null,null,null,null,null,null,null,null,null,null,null,null,null,null,null,null,null,null,null,"2019-02-24","K",40,"2019-02-24"]
[null,null,null,null,null,null,null,null,null,null,null,null,null,null,null,null,null,null,null,null,null,null,null,null,null,null,null,null,null,null,"2019-02-25","L",40,"2019-02-25"]
[null,null,null,null,null,null,null,null,null,null,null,null,null,null,null,null,null,null,null,null,null,null,null,null,null,null,null,null,null,null,"2019-02-26","M",40,"2019-02-26"]
[null,null,null,null,null,null,null,null,null,null,null,null,null,null,null,null,null,null,null,null,null,null,null,null,null,null,null,null,null,null,"2019-02-27","N",40,"2019-02-27"]
[null,null,null,null,null,null,null,null,null,null,null,null,null,null,null,null,null,null,null,null,null,null,null,null,null,null,null,null,null,null,"2019-02-28","O",40,"2019-02-28"]
[null,null,null,null,null,null,null,null,null,null,null,null,null,null,null,null,null,null,null,null,null,null,null,null,null,null,null,null,null,null,"2019-03-01","Y",36,"2019-03-01"]
[null,null,null,null,null,null,null,null,null,null,null,null,null,null,null,null,null,null,null,null,null,null,null,null,null,null,null,null,null,null,"2019-03-02","Z",36,"2019-03-02"]
[null,null,null,null,null,null,null,null,null,null,null,null,null,null,null,null,null,null,null,null,null,null,null,null,null,null,null,null,null,null,"2019-03-03","T",37,"2019-03-03"]
[null,null,null,null,null,null,null,null,null,null,null,null,null,null,null,null,null,null,null,null,null,null,null,null,null,null,null,null,null,null,"2019-03-04","U",37,"2019-03-04"]
[null,null,null,null,null,null,null,null,null,null,null,null,null,null,null,null,null,null,null,null,null,null,null,null,null,null,null,null,null,null,"2019-03-05","V",37,"2019-03-05"]
[null,null,null,null,null,null,null,null,null,null,null,null,null,null,null,null,null,null,null,null,null,null,null,null,null,null,null,null,null,null,"2019-03-06","W",37,"2019-03-06"]
[null,null,null,null,null,null,null,null,null,null,null,null,null,null,null,null,null,null,null,null,null,null,null,null,null,null,null,null,null,null,"2019-03-07","X",37,"2019-03-07"]
[null,null,null,null,null,null,null,null,null,null,null,null,null,null,null,null,null,null,null,null,null,null,null,null,null,null,null,null,null,null,"2019-03-08","Y",37,"2019-03-08"]
[null,null,null,null,null,null,null,null,null,null,null,null,null,null,null,null,null,null,null,null,null,null,null,null,null,null,null,null,null,null,"2019-03-09","Z",37,"2019-03-09"]
[null,null,null,null,null,null,null,null,null,null,null,null,null,null,null,null,null,null,null,null,null,null,null,null,null,null,null,null,null,null,"2019-03-10","T",38,"2019-03-10"]
[null,null,null,null,null,null,null,null,null,null,null,null,null,null,null,null,null,null,null,null,null,null,null,null,null,null,null,null,null,null,"2019-03-11","U",38,"2019-03-11"]
[null,null,null,null,null,null,null,null,null,null,null,null,null,null,null,null,null,null,null,null,null,null,null,null,null,null,null,null,null,null,"2019-03-12","V",38,"2019-03-12"]
[null,null,null,null,null,null,null,null,null,null,null,null,null,null,null,null,null,null,null,null,null,null,null,null,null,null,null,null,null,null,"2019-03-13","W",38,"2019-03-13"]
[null,null,null,null,null,null,null,null,null,null,null,null,null,null,null,null,null,null,null,null,null,null,null,null,null,null,null,null,null,null,"2019-03-14","X",38,"2019-03-14"]
[null,null,null,null,null,null,null,null,null,null,null,null,null,null,null,null,null,null,null,null,null,null,null,null,null,null,null,null,null,null,"2019-03-15","Y",38,{"$f":"IF(INDIRECT(AF273&AG273)=\"\",\"\",AE273)","v":"2019-03-15"}]
[null,null,null,null,null,null,null,null,null,null,null,null,null,null,null,null,null,null,null,null,null,null,null,null,null,null,null,null,null,null,"2019-03-16","Z",38,"2019-03-16"]
[null,null,null,null,null,null,null,null,null,null,null,null,null,null,null,null,null,null,null,null,null,null,null,null,null,null,null,null,null,null,"2019-03-17","T",39,"2019-03-17"]
[null,null,null,null,null,null,null,null,null,null,null,null,null,null,null,null,null,null,null,null,null,null,null,null,null,null,null,null,null,null,"2019-03-18","U",39,"2019-03-18"]
[null,null,null,null,null,null,null,null,null,null,null,null,null,null,null,null,null,null,null,null,null,null,null,null,null,null,null,null,null,null,"2019-03-19","V",39,"2019-03-19"]
[null,null,null,null,null,null,null,null,null,null,null,null,null,null,null,null,null,null,null,null,null,null,null,null,null,null,null,null,null,null,"2019-03-20","W",39,"2019-03-20"]
[null,null,null,null,null,null,null,null,null,null,null,null,null,null,null,null,null,null,null,null,null,null,null,null,null,null,null,null,null,null,"2019-03-21","X",39,"2019-03-21"]
[null,null,null,null,null,null,null,null,null,null,null,null,null,null,null,null,null,null,null,null,null,null,null,null,null,null,null,null,null,null,"2019-03-22","Y",39,"2019-03-22"]
[null,null,null,null,null,null,null,null,null,null,null,null,null,null,null,null,null,null,null,null,null,null,null,null,null,null,null,null,null,null,"2019-03-23","Z",39,"2019-03-23"]
[null,null,null,null,null,null,null,null,null,null,null,null,null,null,null,null,null,null,null,null,null,null,null,null,null,null,null,null,null,null,"2019-03-24","T",40,"2019-03-24"]
[null,null,null,null,null,null,null,null,null,null,null,null,null,null,null,null,null,null,null,null,null,null,null,null,null,null,null,null,null,null,"2019-03-25","U",40,"2019-03-25"]
[null,null,null,null,null,null,null,null,null,null,null,null,null,null,null,null,null,null,null,null,null,null,null,null,null,null,null,null,null,null,"2019-03-26","V",40,"2019-03-26"]
[null,null,null,null,null,null,null,null,null,null,null,null,null,null,null,null,null,null,null,null,null,null,null,null,null,null,null,null,null,null,"2019-03-27","W",40,"2019-03-27"]
[null,null,null,null,null,null,null,null,null,null,null,null,null,null,null,null,null,null,null,null,null,null,null,null,null,null,null,null,null,null,"2019-03-28","X",40,"2019-03-28"]
[null,null,null,null,null,null,null,null,null,null,null,null,null,null,null,null,null,null,null,null,null,null,null,null,null,null,null,null,null,null,"2019-03-29","Y",40,"2019-03-29"]
[null,null,null,null,null,null,null,null,null,null,null,null,null,null,null,null,null,null,null,null,null,null,null,null,null,null,null,null,null,null,"2019-03-30","Z",40,"2019-03-30"]
[null,null,null,null,null,null,null,null,null,null,null,null,null,null,null,null,null,null,null,null,null,null,null,null,null,null,null,null,null,null,"2019-03-31","T",41,"2019-03-31"]
[null,null,null,null,null,null,null,null,null,null,null,null,null,null,null,null,null,null,null,null,null,null,null,null,null,null,null,null,null,null,"2019-04-01","C",45,"2019-04-01"]
[null,null,null,null,null,null,null,null,null,null,null,null,null,null,null,null,null,null,null,null,null,null,null,null,null,null,null,null,null,null,"2019-04-02","D",45,"2019-04-02"]
[null,null,null,null,null,null,null,null,null,null,null,null,null,null,null,null,null,null,null,null,null,null,null,null,null,null,null,null,null,null,"2019-04-03","E",45,"2019-04-03"]
[null,null,null,null,null,null,null,null,null,null,null,null,null,null,null,null,null,null,null,null,null,null,null,null,null,null,null,null,null,null,"2019-04-04","F",45,"2019-04-04"]
[null,null,null,null,null,null,null,null,null,null,null,null,null,null,null,null,null,null,null,null,null,null,null,null,null,null,null,null,null,null,"2019-04-05","G",45,"2019-04-05"]
[null,null,null,null,null,null,null,null,null,null,null,null,null,null,null,null,null,null,null,null,null,null,null,null,null,null,null,null,null,null,"2019-04-06","H",45,"2019-04-06"]
[null,null,null,null,null,null,null,null,null,null,null,null,null,null,null,null,null,null,null,null,null,null,null,null,null,null,null,null,null,null,"2019-04-07","B",46,"2019-04-07"]
[null,null,null,null,null,null,null,null,null,null,null,null,null,null,null,null,null,null,null,null,null,null,null,null,null,null,null,null,null,null,"2019-04-08","C",46,"2019-04-08"]
[null,null,null,null,null,null,null,null,null,null,null,null,null,null,null,null,null,null,null,null,null,null,null,null,null,null,null,null,null,null,"2019-04-09","D",46,"2019-04-09"]
[null,null,null,null,null,null,null,null,null,null,null,null,null,null,null,null,null,null,null,null,null,null,null,null,null,null,null,null,null,null,"2019-04-10","E",46,"2019-04-10"]
[null,null,null,null,null,null,null,null,null,null,null,null,null,null,null,null,null,null,null,null,null,null,null,null,null,null,null,null,null,null,"2019-04-11","F",46,"2019-04-11"]
[null,null,null,null,null,null,null,null,null,null,null,null,null,null,null,null,null,null,null,null,null,null,null,null,null,null,null,null,null,null,"2019-04-12","G",46,"2019-04-12"]
[null,null,null,null,null,null,null,null,null,null,null,null,null,null,null,null,null,null,null,null,null,null,null,null,null,null,null,null,null,null,"2019-04-13","H",46,"2019-04-13"]
[null,null,null,null,null,null,null,null,null,null,null,null,null,null,null,null,null,null,null,null,null,null,null,null,null,null,null,null,null,null,"2019-04-14","B",47,"2019-04-14"]
[null,null,null,null,null,null,null,null,null,null,null,null,null,null,null,null,null,null,null,null,null,null,null,null,null,null,null,null,null,null,"2019-04-15","C",47,"2019-04-15"]
[null,null,null,null,null,null,null,null,null,null,null,null,null,null,null,null,null,null,null,null,null,null,null,null,null,null,null,null,null,null,"2019-04-16","D",47,"2019-04-16"]
[null,null,null,null,null,null,null,null,null,null,null,null,null,null,null,null,null,null,null,null,null,null,null,null,null,null,null,null,null,null,"2019-04-17","E",47,"2019-04-17"]
[null,null,null,null,null,null,null,null,null,null,null,null,null,null,null,null,null,null,null,null,null,null,null,null,null,null,null,null,null,null,"2019-04-18","F",47,"2019-04-18"]
[null,null,null,null,null,null,null,null,null,null,null,null,null,null,null,null,null,null,null,null,null,null,null,null,null,null,null,null,null,null,"2019-04-19","G",47,"2019-04-19"]
[null,null,null,null,null,null,null,null,null,null,null,null,null,null,null,null,null,null,null,null,null,null,null,null,null,null,null,null,null,null,"2019-04-20","H",47,"2019-04-20"]
[null,null,null,null,null,null,null,null,null,null,null,null,null,null,null,null,null,null,null,null,null,null,null,null,null,null,null,null,null,null,"2019-04-21","B",48,"2019-04-21"]
[null,null,null,null,null,null,null,null,null,null,null,null,null,null,null,null,null,null,null,null,null,null,null,null,null,null,null,null,null,null,"2019-04-22","C",48,"2019-04-22"]
[null,null,null,null,null,null,null,null,null,null,null,null,null,null,null,null,null,null,null,null,null,null,null,null,null,null,null,null,null,null,"2019-04-23","D",48,"2019-04-23"]
[null,null,null,null,null,null,null,null,null,null,null,null,null,null,null,null,null,null,null,null,null,null,null,null,null,null,null,null,null,null,"2019-04-24","E",48,"2019-04-24"]
[null,null,null,null,null,null,null,null,null,null,null,null,null,null,null,null,null,null,null,null,null,null,null,null,null,null,null,null,null,null,"2019-04-25","F",48,"2019-04-25"]
[null,null,null,null,null,null,null,null,null,null,null,null,null,null,null,null,null,null,null,null,null,null,null,null,null,null,null,null,null,null,"2019-04-26","G",48,"2019-04-26"]
[null,null,null,null,null,null,null,null,null,null,null,null,null,null,null,null,null,null,null,null,null,null,null,null,null,null,null,null,null,null,"2019-04-27","H",48,"2019-04-27"]
[null,null,null,null,null,null,null,null,null,null,null,null,null,null,null,null,null,null,null,null,null,null,null,null,null,null,null,null,null,null,"2019-04-28","B",49,"2019-04-28"]
[null,null,null,null,null,null,null,null,null,null,null,null,null,null,null,null,null,null,null,null,null,null,null,null,null,null,null,null,null,null,"2019-04-29","C",49,"2019-04-29"]
[null,null,null,null,null,null,null,null,null,null,null,null,null,null,null,null,null,null,null,null,null,null,null,null,null,null,null,null,null,null,"2019-04-30","D",49,"2019-04-30"]
[null,null,null,null,null,null,null,null,null,null,null,null,null,null,null,null,null,null,null,null,null,null,null,null,null,null,null,null,null,null,"2019-05-01","N",45,"2019-05-01"]
[null,null,null,null,null,null,null,null,null,null,null,null,null,null,null,null,null,null,null,null,null,null,null,null,null,null,null,null,null,null,"2019-05-02","O",45,"2019-05-02"]
[null,null,null,null,null,null,null,null,null,null,null,null,null,null,null,null,null,null,null,null,null,null,null,null,null,null,null,null,null,null,"2019-05-03","P",45,"2019-05-03"]
[null,null,null,null,null,null,null,null,null,null,null,null,null,null,null,null,null,null,null,null,null,null,null,null,null,null,null,null,null,null,"2019-05-04","Q",45,"2019-05-04"]
[null,null,null,null,null,null,null,null,null,null,null,null,null,null,null,null,null,null,null,null,null,null,null,null,null,null,null,null,null,null,"2019-05-05","K",46,"2019-05-05"]
[null,null,null,null,null,null,null,null,null,null,null,null,null,null,null,null,null,null,null,null,null,null,null,null,null,null,null,null,null,null,"2019-05-06","L",46,"2019-05-06"]
[null,null,null,null,null,null,null,null,null,null,null,null,null,null,null,null,null,null,null,null,null,null,null,null,null,null,null,null,null,null,"2019-05-07","M",46,"2019-05-07"]
[null,null,null,null,null,null,null,null,null,null,null,null,null,null,null,null,null,null,null,null,null,null,null,null,null,null,null,null,null,null,"2019-05-08","N",46,"2019-05-08"]
[null,null,null,null,null,null,null,null,null,null,null,null,null,null,null,null,null,null,null,null,null,null,null,null,null,null,null,null,null,null,"2019-05-09","O",46,"2019-05-09"]
[null,null,null,null,null,null,null,null,null,null,null,null,null,null,null,null,null,null,null,null,null,null,null,null,null,null,null,null,null,null,"2019-05-10","P",46,"2019-05-10"]
[null,null,null,null,null,null,null,null,null,null,null,null,null,null,null,null,null,null,null,null,null,null,null,null,null,null,null,null,null,null,"2019-05-11","Q",46,"2019-05-11"]
[null,null,null,null,null,null,null,null,null,null,null,null,null,null,null,null,null,null,null,null,null,null,null,null,null,null,null,null,null,null,"2019-05-12","K",47,"2019-05-12"]
[null,null,null,null,null,null,null,null,null,null,null,null,null,null,null,null,null,null,null,null,null,null,null,null,null,null,null,null,null,null,"2019-05-13","L",47,"2019-05-13"]
[null,null,null,null,null,null,null,null,null,null,null,null,null,null,null,null,null,null,null,null,null,null,null,null,null,null,null,null,null,null,"2019-05-14","M",47,"2019-05-14"]
[null,null,null,null,null,null,null,null,null,null,null,null,null,null,null,null,null,null,null,null,null,null,null,null,null,null,null,null,null,null,"2019-05-15","N",47,"2019-05-15"]
[null,null,null,null,null,null,null,null,null,null,null,null,null,null,null,null,null,null,null,null,null,null,null,null,null,null,null,null,null,null,"2019-05-16","O",47,"2019-05-16"]
[null,null,null,null,null,null,null,null,null,null,null,null,null,null,null,null,null,null,null,null,null,null,null,null,null,null,null,null,null,null,"2019-05-17","P",47,"2019-05-17"]
[null,null,null,null,null,null,null,null,null,null,null,null,null,null,null,null,null,null,null,null,null,null,null,null,null,null,null,null,null,null,"2019-05-18","Q",47,{"$f":"IF(INDIRECT(AF337&AG337)=\"\",\"\",AE337)","v":"2019-05-18"}]
[null,null,null,null,null,null,null,null,null,null,null,null,null,null,null,null,null,null,null,null,null,null,null,null,null,null,null,null,null,null,"2019-05-19","K",48,"2019-05-19"]
[null,null,null,null,null,null,null,null,null,null,null,null,null,null,null,null,null,null,null,null,null,null,null,null,null,null,null,null,null,null,"2019-05-20","L",48,"2019-05-20"]
[null,null,null,null,null,null,null,null,null,null,null,null,null,null,null,null,null,null,null,null,null,null,null,null,null,null,null,null,null,null,"2019-05-21","M",48,"2019-05-21"]
[null,null,null,null,null,null,null,null,null,null,null,null,null,null,null,null,null,null,null,null,null,null,null,null,null,null,null,null,null,null,"2019-05-22","N",48,"2019-05-22"]
[null,null,null,null,null,null,null,null,null,null,null,null,null,null,null,null,null,null,null,null,null,null,null,null,null,null,null,null,null,null,"2019-05-23","O",48,"2019-05-23"]
[null,null,null,null,null,null,null,null,null,null,null,null,null,null,null,null,null,null,null,null,null,null,null,null,null,null,null,null,null,null,"2019-05-24","P",48,"2019-05-24"]
[null,null,null,null,null,null,null,null,null,null,null,null,null,null,null,null,null,null,null,null,null,null,null,null,null,null,null,null,null,null,"2019-05-25","Q",48,"2019-05-25"]
[null,null,null,null,null,null,null,null,null,null,null,null,null,null,null,null,null,null,null,null,null,null,null,null,null,null,null,null,null,null,"2019-05-26","K",49,"2019-05-26"]
[null,null,null,null,null,null,null,null,null,null,null,null,null,null,null,null,null,null,null,null,null,null,null,null,null,null,null,null,null,null,"2019-05-27","L",49,"2019-05-27"]
[null,null,null,null,null,null,null,null,null,null,null,null,null,null,null,null,null,null,null,null,null,null,null,null,null,null,null,null,null,null,"2019-05-28","M",49,"2019-05-28"]
[null,null,null,null,null,null,null,null,null,null,null,null,null,null,null,null,null,null,null,null,null,null,null,null,null,null,null,null,null,null,"2019-05-29","N",49,"2019-05-29"]
[null,null,null,null,null,null,null,null,null,null,null,null,null,null,null,null,null,null,null,null,null,null,null,null,null,null,null,null,null,null,"2019-05-30","O",49,"2019-05-30"]
[null,null,null,null,null,null,null,null,null,null,null,null,null,null,null,null,null,null,null,null,null,null,null,null,null,null,null,null,null,null,"2019-05-31","P",49,"2019-05-31"]
[null,null,null,null,null,null,null,null,null,null,null,null,null,null,null,null,null,null,null,null,null,null,null,null,null,null,null,null,null,null,"2019-06-01","Z",45,"2019-06-01"]
[null,null,null,null,null,null,null,null,null,null,null,null,null,null,null,null,null,null,null,null,null,null,null,null,null,null,null,null,null,null,"2019-06-02","T",46,"2019-06-02"]
[null,null,null,null,null,null,null,null,null,null,null,null,null,null,null,null,null,null,null,null,null,null,null,null,null,null,null,null,null,null,"2019-06-03","U",46,"2019-06-03"]
[null,null,null,null,null,null,null,null,null,null,null,null,null,null,null,null,null,null,null,null,null,null,null,null,null,null,null,null,null,null,"2019-06-04","V",46,"2019-06-04"]
[null,null,null,null,null,null,null,null,null,null,null,null,null,null,null,null,null,null,null,null,null,null,null,null,null,null,null,null,null,null,"2019-06-05","W",46,"2019-06-05"]
[null,null,null,null,null,null,null,null,null,null,null,null,null,null,null,null,null,null,null,null,null,null,null,null,null,null,null,null,null,null,"2019-06-06","X",46,"2019-06-06"]
[null,null,null,null,null,null,null,null,null,null,null,null,null,null,null,null,null,null,null,null,null,null,null,null,null,null,null,null,null,null,"2019-06-07","Y",46,"2019-06-07"]
[null,null,null,null,null,null,null,null,null,null,null,null,null,null,null,null,null,null,null,null,null,null,null,null,null,null,null,null,null,null,"2019-06-08","Z",46,"2019-06-08"]
[null,null,null,null,null,null,null,null,null,null,null,null,null,null,null,null,null,null,null,null,null,null,null,null,null,null,null,null,null,null,"2019-06-09","T",47,"2019-06-09"]
[null,null,null,null,null,null,null,null,null,null,null,null,null,null,null,null,null,null,null,null,null,null,null,null,null,null,null,null,null,null,"2019-06-10","U",47,"2019-06-10"]
[null,null,null,null,null,null,null,null,null,null,null,null,null,null,null,null,null,null,null,null,null,null,null,null,null,null,null,null,null,null,"2019-06-11","V",47,"2019-06-11"]
[null,null,null,null,null,null,null,null,null,null,null,null,null,null,null,null,null,null,null,null,null,null,null,null,null,null,null,null,null,null,"2019-06-12","W",47,"2019-06-12"]
[null,null,null,null,null,null,null,null,null,null,null,null,null,null,null,null,null,null,null,null,null,null,null,null,null,null,null,null,null,null,"2019-06-13","X",47,"2019-06-13"]
[null,null,null,null,null,null,null,null,null,null,null,null,null,null,null,null,null,null,null,null,null,null,null,null,null,null,null,null,null,null,"2019-06-14","Y",47,"2019-06-14"]
[null,null,null,null,null,null,null,null,null,null,null,null,null,null,null,null,null,null,null,null,null,null,null,null,null,null,null,null,null,null,"2019-06-15","Z",47,"2019-06-15"]
[null,null,null,null,null,null,null,null,null,null,null,null,null,null,null,null,null,null,null,null,null,null,null,null,null,null,null,null,null,null,"2019-06-16","T",48,"2019-06-16"]
[null,null,null,null,null,null,null,null,null,null,null,null,null,null,null,null,null,null,null,null,null,null,null,null,null,null,null,null,null,null,"2019-06-17","U",48,"2019-06-17"]
[null,null,null,null,null,null,null,null,null,null,null,null,null,null,null,null,null,null,null,null,null,null,null,null,null,null,null,null,null,null,"2019-06-18","V",48,"2019-06-18"]
[null,null,null,null,null,null,null,null,null,null,null,null,null,null,null,null,null,null,null,null,null,null,null,null,null,null,null,null,null,null,"2019-06-19","W",48,"2019-06-19"]
[null,null,null,null,null,null,null,null,null,null,null,null,null,null,null,null,null,null,null,null,null,null,null,null,null,null,null,null,null,null,"2019-06-20","X",48,"2019-06-20"]
[null,null,null,null,null,null,null,null,null,null,null,null,null,null,null,null,null,null,null,null,null,null,null,null,null,null,null,null,null,null,"2019-06-21","Y",48,"2019-06-21"]
[null,null,null,null,null,null,null,null,null,null,null,null,null,null,null,null,null,null,null,null,null,null,null,null,null,null,null,null,null,null,"2019-06-22","Z",48,"2019-06-22"]
[null,null,null,null,null,null,null,null,null,null,null,null,null,null,null,null,null,null,null,null,null,null,null,null,null,null,null,null,null,null,"2019-06-23","T",49,"2019-06-23"]
[null,null,null,null,null,null,null,null,null,null,null,null,null,null,null,null,null,null,null,null,null,null,null,null,null,null,null,null,null,null,"2019-06-24","U",49,"2019-06-24"]
[null,null,null,null,null,null,null,null,null,null,null,null,null,null,null,null,null,null,null,null,null,null,null,null,null,null,null,null,null,null,"2019-06-25","V",49,"2019-06-25"]
[null,null,null,null,null,null,null,null,null,null,null,null,null,null,null,null,null,null,null,null,null,null,null,null,null,null,null,null,null,null,"2019-06-26","W",49,"2019-06-26"]
[null,null,null,null,null,null,null,null,null,null,null,null,null,null,null,null,null,null,null,null,null,null,null,null,null,null,null,null,null,null,"2019-06-27","X",49,"2019-06-27"]
[null,null,null,null,null,null,null,null,null,null,null,null,null,null,null,null,null,null,null,null,null,null,null,null,null,null,null,null,null,null,"2019-06-28","Y",49,"2019-06-28"]
[null,null,null,null,null,null,null,null,null,null,null,null,null,null,null,null,null,null,null,null,null,null,null,null,null,null,null,null,null,null,"2019-06-29","Z",49,"2019-06-29"]
[null,null,null,null,null,null,null,null,null,null,null,null,null,null,null,null,null,null,null,null,null,null,null,null,null,null,null,null,null,null,"2019-06-30","T",50,"2019-06-30"]

{"sheet":"data","index":1,"n_rows":215,"n_cols":13,"rows_kept":215,"cut":false,"hidden":false,"merged":[]}
["Prog_Code","type","School_Name","Prog_Name","Rate_ann","Rate_daily","total_days","start_date","end_date"]
[]
["5017A","Res Ed","Amego","Autistic",235946.349548703,646.42835492795348,365,null,null,{"$f":"IF(C3<>\"Summer\", \"No\", \"Yes\")","v":"No"},{"$f":"A3& \" - \"&C3 & \" - \"&D3","v":"5017A - Amego - Autistic"}," ",{"$f":"TRIM(A3)","v":"5017A"}]
["5017B","Day","Amego","Amego School Day ",105649.7450762988,431.22344929101553,245,null,null,{"$f":"IF(C4<>\"Summer\", \"No\", \"Yes\")","v":"No"},{"$f":"A4& \" - \"&C4 & \" - \"&D4","v":"5017B - Amego - Amego School Day "}," ",{"$f":"TRIM(A4)","v":"5017B"}]
["5021C","Day","American School for the Deaf","MA Educational/Day",65867,365.92777777777781,180,null,null,"No","5021C - American School for the Deaf - MA Educational/Day"," ","5021C"]
["5021E","Res Ed","American School for the Deaf","MA Educational/Residential",95044,528.02222222222224,180,null,null,"No","5021E - American School for the Deaf - MA Educational/Residential"," ","5021E"]
["5021G","Res Ed","American School for the Deaf","MA PACES 365",488502,1338.3616438356164,365,null,null,"No","5021G - American School for the Deaf - MA PACES 365"," ","5021G"]
["5034A","Res Ed","Archway, Inc.","Archway",172239.37780173568,471.88870630612513,365,null,null,"No","5034A - Archway, Inc. - Archway"," ","5034A"]
["5036A","Day","McLean Hospital, Inc.","Arlington-Academy",71001.554535550793,358.59370977550907,198,null,null,"No","5036A - McLean Hospital, Inc. - Arlington-Academy"," ","5036A"]
["5036I","Day","McLean Hospital, Inc.","CNS",103131.7275402324,477.46170157515002,216,null,null,"No","5036I - McLean Hospital, Inc. - CNS"," ","5036I"]
["5049A","Day","Mass. Found. for Learning Disabilities","White Oak School",40102.6867875963,222.79270437553501,180,null,null,"No","5049A - Mass. Found. for Learning Disabilities - White Oak School"," ","5049A"]
["5088D","Res Ed","Hillcrest Educational Centers, Inc.","Hillcrest",206158.98100500004,564.81912604109596,365,null,null,"No","5088D - Hillcrest Educational Centers, Inc. - Hillcrest"," ","5088D"]
["5088E","Res Ed","Hillcrest Educational Centers, Inc.","Intensive Tx Unit",333838.01511000004,914.62469893150694,365,null,null,"No","5088E - Hillcrest Educational Centers, Inc. - Intensive Tx Unit"," ","5088E"]
["5088F ","Day","Hillcrest Educational Centers, Inc.","Housatonic Academy",53317.500593526893,246.84028052558747,216,null,null,"No","5088F  - Hillcrest Educational Centers, Inc. - Housatonic Academy"," ","5088F"]
["5088G","Res Ed","Hillcrest Educational Centers, Inc.","Autism Spectrum Disorders",353963.37900600006,969.7626822082193,365,null,null,"No","5088G - Hillcrest Educational Centers, Inc. - Autism Spectrum Disorders"," ","5088G"]
["5095A","Res Ed","Home for Little Wanderers","Southeast Campus Res.",213393.11524099918,584.6386718931484,365,null,null,"No","5095A - Home for Little Wanderers - Southeast Campus Res."," ","5095A"]
["5095B","Day","Home for Little Wanderers","Southeast Campus Day",71187.428788010991,329.57142957412498,216,null,null,"No","5095B - Home for Little Wanderers - Southeast Campus Day"," ","5095B"]
["5097A","Day","Judge Baker Children's Center, Inc.","Manville",91168.198230000009,506.4899901666667,180,null,null,"No","5097A - Judge Baker Children's Center, Inc. - Manville"," ","5097A"]
["5097B","Summer","Judge Baker Children's Center, Inc.","Manville-Summer",6322.5188260694995,316.12594130347497,20,null,null,"No","5097B - Judge Baker Children's Center, Inc. - Manville-Summer"," ","5097B"]
["5110A","Summer","COMPASS, Inc.","Summer",7485.7546753766992,311.90644480736245,24,null,null,"No","5110A - COMPASS, Inc. - Summer"," ","5110A"]
["5110B","Day","COMPASS, Inc.","Short Term Crisis",29715.615150883201,165.08675083823999,180,null,null,"No","5110B - COMPASS, Inc. - Short Term Crisis"," ","5110B"]
["5110C","Day","COMPASS, Inc.","766 Day School",71077.119720000017,394.87288733333344,180,null,null,"No","5110C - COMPASS, Inc. - 766 Day School"," ","5110C"]
["5112B","Day","Justice Resource Institute","Bay Cove",75962.491886964199,345.28405403165544,220,null,null,"No","5112B - Justice Resource Institute - Bay Cove"," ","5112B"]
["5113A","Day","New England Pediatric Nursing Home","Pediatric",61143.1868052711,243.59835380586097,251,null,null,"No","5113A - New England Pediatric Nursing Home - Pediatric"," ","5113A"]
["5120A","Res Ed","Judge Rotenberg Educational Center","Judge Rotenberg",263622.78059459489,722.25419340984899,365,null,null,"No","5120A - Judge Rotenberg Educational Center - Judge Rotenberg"," ","5120A"]
["5127C","Res Ed","Justice Resource Institute","Berkshire Meadows",224969.48501043417,616.35475345324437,365,null,null,"No","5127C - Justice Resource Institute - Berkshire Meadows"," ","5127C"]
["5127D","Day","Justice Resource Institute","Victor School",55948.794016654792,259.02219452154998,216,null,null,"No","5127D - Justice Resource Institute - Victor School"," ","5127D"]
["5134B","Day","Beverly School for the Deaf","BSD",76977.182187991799,377.33912837250881,204,null,null,"No","5134B - Beverly School for the Deaf - BSD"," ","5134B"]
["5134C","Day","Beverly School for the Deaf","Child. Comm. Ctr.",90949.298015583903,445.82989223325444,204,null,null,"No","5134C - Beverly School for the Deaf - Child. Comm. Ctr."," ","5134C"]
["5154A","Day","Boston Higashi School","Day Education",76718.387557065609,353.54095648417331,217,null,null,"No","5154A - Boston Higashi School - Day Education"," ","5154A"]
["5154B","Res Ed","Boston Higashi School","Residential Ed.",187847.10187332748,617.91809826752467,304,null,null,"No","5154B - Boston Higashi School - Residential Ed."," ","5154B"]
["5154C","Res Ed","Boston Higashi School","Residential Ed. 365",225531.83408864128,617.89543585929118,365,null,null,"No","5154C - Boston Higashi School - Residential Ed. 365"," ","5154C"]
["5157A","Day","Boston College Campus School","Campus School",90784.134858823221,458.50573161021828,198,null,null,"No","5157A - Boston College Campus School - Campus School"," ","5157A"]
["5160C","Day","Brandon Residential Treatment Center","Intensive Day",58762.959699454201,272.050739349325,216,null,null,"No","5160C - Brandon Residential Treatment Center - Intensive Day"," ","5160C"]
["5160D","Res Ed","Brandon Residential Treatment Center","Intensive Res.",180462.10612546079,494.41672911085146,365,null,null,"No","5160D - Brandon Residential Treatment Center - Intensive Res."," ","5160D"]
["5165A","Day","Broccoli Hall, Inc.","Corwin-Russell",38231.458465997704,212.39699147776503,180,null,null,"No","5165A - Broccoli Hall, Inc. - Corwin-Russell"," ","5165A"]
["5177G","Day","Specialized Education Services, Inc.","High Road School of MA.",39734.283063568495,220.74601701982496,180,null,null,"No","5177G - Specialized Education Services, Inc. - High Road School of MA."," ","5177G"]
["5177H","Summer","Specialized Education Services, Inc.","High Road School of MA.",6221.4690480470999,207.38230160156999,30,null,null,"No","5177H - Specialized Education Services, Inc. - High Road School of MA."," ","5177H"]
["5224A","Day","Center for Applied Behavioral Instuction","Day Program",90920.618077557592,402.30361981220176,226,null,null,"No","5224A - Center for Applied Behavioral Instuction - Day Program"," ","5224A"]
["5227A","Day","Springdale Education Center","Springdale Ed. Center",72118.64,327.81200000000001,220,null,null,"No","5227A - Springdale Education Center - Springdale Ed. Center"," ","5227A"]
["5227B","Day","Center for School Crisis Inter. & Assess.","Center School",77122.709619832953,350.55777099924069,220,null,null,"No","5227B - Center for School Crisis Inter. & Assess. - Center School"," ","5227B"]
["5238E","Day","F. L. Chamberlain School, Inc.","Day",60483.9741189165,280.01839869868752,216,null,null,"No","5238E - F. L. Chamberlain School, Inc. - Day"," ","5238E"]
["5238F","Res Ed","F. L. Chamberlain School, Inc.","365 Day Residential",124833.23728492769,342.00886927377451,365,null,null,"No","5238F - F. L. Chamberlain School, Inc. - 365 Day Residential"," ","5238F"]
["5242A","Day","Seven Hills Foundation, Inc.","Groton - Clin Nursery",48823.403126141704,194.51555030335339,251,null,null,"No","5242A - Seven Hills Foundation, Inc. - Groton - Clin Nursery"," ","5242A"]
["5249A","Day","Children's Study Home","Mill Pond Day Program",49603.1094881307,229.64402540801251,216,null,null,"No","5249A - Children's Study Home - Mill Pond Day Program"," ","5249A"]
["5249G","Day","Children's Study Home","Curtis Blake Day School",42446.68,235.8148888888889,180,null,null,"No","5249G - Children's Study Home - Curtis Blake Day School"," ","5249G"]
["5253A","Day","Professional Ctr. for Handicapped Child.","Day Program",86487.578442739788,436.80595173100903,198,null,null,"No","5253A - Professional Ctr. for Handicapped Child. - Day Program"," ","5253A"]
["5257A","Day","Clarke School for the Deaf","Day Education",46173.450315452559,256.51916841918086,180,null,null,"No","5257A - Clarke School for the Deaf - Day Education"," ","5257A"]
["5257B","Day","Clarke School for the Deaf","Preschool",37846.259550690753,191.14272500348866,198,null,null,"No","5257B - Clarke School for the Deaf - Preschool"," ","5257B"]
["5257D","Day","Clarke School for the Deaf","Clarke School East",36470.485859389388,189.95044718431973,192,null,null,"No","5257D - Clarke School for the Deaf - Clarke School East"," ","5257D"]
["5258A","Day","Clearway School, Inc.","766 School",48548.601329515201,269.71445183064003,180,null,null,"No","5258A - Clearway School, Inc. - 766 School"," ","5258A"]
["5258B","Summer","Clearway School, Inc.","Summer",5608.8859313412004,233.70358047255002,24,null,null,"No","5258B - Clearway School, Inc. - Summer"," ","5258B"]
["5265A","Day","Community Therapeutic Day School","Day School",77506.093075076074,430.58940597264484,180,null,null,"No","5265A - Community Therapeutic Day School - Day School"," ","5265A"]
["5265B","Summer","Community Therapeutic Day School","Summer",6896.0760365223005,344.80380182611503,20,null,null,"No","5265B - Community Therapeutic Day School - Summer"," ","5265B"]
["5272A","Day","Crossroads School  Children, Inc.","Crossroads School",107815.0544284887,477.05776295791458,226,null,null,"No","5272A - Crossroads School  Children, Inc. - Crossroads School"," ","5272A"]
["5274A","Day","Cotting School, Inc.","Cotting Day",78381.2110990113,435.45117277228502,180,null,null,"No","5274A - Cotting School, Inc. - Cotting Day"," ","5274A"]
["5274B","Summer","Cotting School, Inc.","Cotting Summer",7547.7369970727996,301.90947988291197,25,null,null,"No","5274B - Cotting School, Inc. - Cotting Summer"," ","5274B"]
["5274E","Residential","Cotting School, Inc.","Hopehouse",95371.898194510199,529.84387885838998,180,null,null,"No","5274E - Cotting School, Inc. - Hopehouse"," ","5274E"]
["5276A","Res Ed","Crotched Mountain Rehabilitation","Residential",120541.25,330.25,365,null,null,"No","5276A - Crotched Mountain Rehabilitation - Residential"," ","5276A"]
["5276B","Res Ed","Crotched Mountain Rehabilitation","Medic. Involve",358130,981.17808219178085,365,null,null,"No","5276B - Crotched Mountain Rehabilitation - Medic. Involve"," ","5276B"]
["5276D","Day","Crotched Mountain Rehabilitation","Day",91115.199999999997,414.15999999999997,220,null,null,"No","5276D - Crotched Mountain Rehabilitation - Day"," ","5276D"]
["5296A","Day","Cardinal Cushing School & Training Ctr.","Day/Vocational",75902.209081679684,351.39911611888743,216,null,null,"No","5296A - Cardinal Cushing School & Training Ctr. - Day/Vocational"," ","5296A"]
["5296C","Res Ed","Cardinal Cushing School & Training Ctr.","Residential",204260.88697748102,559.61886843145487,365,null,null,"No","5296C - Cardinal Cushing School & Training Ctr. - Residential"," ","5296C"]
["5296E","Res Ed","Cardinal Cushing School & Training Ctr.","Residential",{"$f":"+F64*G64","v":176279.94355590828},559.61886843145487,315,null,null,{"$f":"IF(C64<>\"Summer\", \"No\", \"Yes\")","v":"No"},{"$f":"A64& \" - \"&C64 & \" - \"&D64","v":"5296E - Cardinal Cushing School & Training Ctr. - Residential"}," ",{"$f":"TRIM(A64)","v":"5296E"}]
["5296F","Res Ed","Cardinal Cushing School & Training Ctr.","Residential",{"$f":"+F65*G65","v":157252.90202923882},559.61886843145487,281,null,null,"No","5296F - Cardinal Cushing School & Training Ctr. - Residential"," ","5296F"]
["5297A","Res Ed","Crystal Springs, Inc.","Main Program",279923.52872460778,766.91377732769251,365,null,null,"No","5297A - Crystal Springs, Inc. - Main Program"," ","5297A"]
["5303A","Res Ed","Fall River Deaconess, Inc.","Residential Program",164629.1287195335,451.03870882063973,365,null,null,"No","5303A - Fall River Deaconess, Inc. - Residential Program"," ","5303A"]
["5303C","Day","Fall River Deaconess, Inc.","Day Program",58028.004045777612,268.64816687860008,216,null,null,"No","5303C - Fall River Deaconess, Inc. - Day Program"," ","5303C"]
["5306B","Day","Schools for Children","Dearborn Academy",71099.520363265125,394.99733535147294,180,null,null,"No","5306B - Schools for Children - Dearborn Academy"," ","5306B"]
["5306C","Summer","Schools for Children","Dearborn Summer",5614.0589154545996,187.13529718181999,30,null,null,"No","5306C - Schools for Children - Dearborn Summer"," ","5306C"]
["5306D","Day","Schools for Children","Seaport Campus",68148.38,378.60211111111113,180,null,null,"No","5306D - Schools for Children - Seaport Campus"," ","5306D"]
["5324A","Res Ed","Devereux Foundation of Mass., Inc.","Resid. Treatment",155683.07594650623,426.52897519590749,365,null,null,"No","5324A - Devereux Foundation of Mass., Inc. - Resid. Treatment"," ","5324A"]
["5324B","Res Ed","Devereux Foundation of Mass., Inc.","West Meadow",181542.9481796124,497.37794021811618,365,null,null,"No","5324B - Devereux Foundation of Mass., Inc. - West Meadow"," ","5324B"]
["5324D","Res Ed","Devereux -Ackerman Academey","Residential/Treatment Services ",127629.55,349.67,365,null,null,"No","5324D - Devereux -Ackerman Academey - Residential/Treatment Services "," ","5324D"]
["5324E","Res. Ed","Devereux Glenholme","Glenholme",118422.13497400002,324.4442054082192,365,null,null,"No","5324E - Devereux Glenholme - Glenholme"," ","5324E"]
["5324P","Day","Devereux Foundation of Mass., Inc.","Day Program",50971.323772697404,235.97835079952503,216,null,null,"No","5324P - Devereux Foundation of Mass., Inc. - Day Program"," ","5324P"]
["5338C","Res Ed","Easter Seals of New Hampshire","Jolicoeur - Krol Residential - Regular",186404.84,510.6981917808219,365,null,null,"No","5338C - Easter Seals of New Hampshire - Jolicoeur - Krol Residential - Regular"," ","5338C"]
["5338E","Res Ed","Easter Seals of New Hampshire","Jolicouer - Zachery Road Residential - Regular",212009.59,580.84819178082194,365,null,null,"No","5338E - Easter Seals of New Hampshire - Jolicouer - Zachery Road Residential - Regular"," ","5338E"]
["5338F","Res Ed","Easter Seals of New Hampshire","Jolicouer - Zachery Road Residential - Intensive",339410.28,929.89117808219191,365,null,null,"No","5338F - Easter Seals of New Hampshire - Jolicouer - Zachery Road Residential - Intensive"," ","5338F"]
["5338G","Res Ed","Easter Seals of New Hampshire","Jolicouer - House III Males Residential - Regular",187948.79,514.92819178082198,365,null,null,"No","5338G - Easter Seals of New Hampshire - Jolicouer - House III Males Residential - Regular"," ","5338G"]
["5338I","Res Ed","Easter Seals of New Hampshire","Developmental Disabled Middle School - Lancaster - Regular",214825.69,588.56353424657539,365,null,null,"No","5338I - Easter Seals of New Hampshire - Developmental Disabled Middle School - Lancaster - Regular"," ","5338I"]
["5338J","Res Ed","Easter Seals of New Hampshire","Developmental Disabled Middle School - Lancaster - Int.",342226.38,937.60652054794525,365,null,null,"No","5338J - Easter Seals of New Hampshire - Developmental Disabled Middle School - Lancaster - Int."," ","5338J"]
["5341B ","Day","Lifespan School Solutions/Bradley Schools","Standard Rate",52460,244,215,null,null,"No","5341B  - Lifespan School Solutions/Bradley Schools - Standard Rate"," ","5341B "]
["5341D","Day","Lifespan School Solutions/Bradley Schools"," Intensive Rate",62350,290,215,null,null,"No","5341D - Lifespan School Solutions/Bradley Schools -  Intensive Rate"," ","5341D"]
["5341E","Day","Lifespan School Solutions/Bradley Schools"," Intensive Rate",62350,290,215,null,null,"No","5341E - Lifespan School Solutions/Bradley Schools -  Intensive Rate"," ","5341E"]
["5341J","Day","Lifespan School Solutions/Bradley Schools","Standard Rate",52460,244,215,null,null,"No","5341J - Lifespan School Solutions/Bradley Schools - Standard Rate"," ","5341J"]
["5341N","Day","Lifespan School Solutions/Bradley Schools","Clinical Intensive",69230,322,215,null,null,"No","5341N - Lifespan School Solutions/Bradley Schools - Clinical Intensive"," ","5341N"]
["5341P","Day","Lifespan School Solutions/Bradley Schools","Partnership Standard Rate",44505,207,215,null,null,"No","5341P - Lifespan School Solutions/Bradley Schools - Partnership Standard Rate"," ","5341P"]
["5341S","Day","Lifespan School Solutions/Bradley Schools","Bradley School North, Intensive",52460,244,215,null,null,"No","5341S - Lifespan School Solutions/Bradley Schools - Bradley School North, Intensive"," ","5341S"]
["5341T","Day","Lifespan School Solutions/Bradley Schools","Bradley School North, Standard",62350,290,215,null,null,"No","5341T - Lifespan School Solutions/Bradley Schools - Bradley School North, Standard"," ","5341T"]
["5343B","Res Ed","New England Center for Children","N.E.C.C. Residen",237190.09225047845,649.83586917939306,365,null,null,"No","5343B - New England Center for Children - N.E.C.C. Residen"," ","5343B"]
["5343C","Res Ed","New England Center for Children","N.E.C.C. Severe",345166.17608234886,945.66075638999689,365,null,null,"No","5343C - New England Center for Children - N.E.C.C. Severe"," ","5343C"]
["5343D","Day","New England Center for Children","Intensive Instruction",118969.66543281842,526.41444881778068,226,null,null,"No","5343D - New England Center for Children - Intensive Instruction"," ","5343D"]
["5343E","Res Ed","New England Center for Children","Intermediate",319279.56069680006,874.73852245698652,365,null,null,"No","5343E - New England Center for Children - Intermediate"," ","5343E"]
["5360A","Day","Milestones, Inc.","Milestones Day School",94822.138788482713,438.99138328001254,216,null,null,"No","5360A - Milestones, Inc. - Milestones Day School"," ","5360A"]
["5365A","Day","R. F. Kennedy Action Corps","Exp. With Travel",59096.139348926699,273.59323772651248,216,null,null,"No","5365A - R. F. Kennedy Action Corps - Exp. With Travel"," ","5365A"]
["5381A","Day","James Farr Academy","Farr Academy",78566.898376142082,436.48276875634491,180,null,null,"No","5381A - James Farr Academy - Farr Academy"," ","5381A"]
["5381C","Summer","James Farr Academy","Farr Academy Summer",8093.3933333717996,323.73573333487201,25,null,null,"No","5381C - James Farr Academy - Farr Academy Summer"," ","5381C"]
["5385A","Res Ed","Evergreen Center, Inc.","BDU",241465.193955,661.54847658904112,365,null,null,"No","5385A - Evergreen Center, Inc. - BDU"," ","5385A"]
["5385B","Res Ed","Evergreen Center, Inc.","Multi H.",218275.63200000001,598.01543013698631,365,null,null,"No","5385B - Evergreen Center, Inc. - Multi H."," ","5385B"]
["5415A","Day","Hopeful Journeys Education Center, Inc","Hopeful Journeys ",117340.31759734625,543.24221109882524,216,null,null,"No","5415A - Hopeful Journeys Education Center, Inc - Hopeful Journeys "," ","5415A"]
["5440A","Day","Margaret Gifford School","Gifford School",62508.470273031598,347.26927929461999,180,null,null,"No","5440A - Margaret Gifford School - Gifford School"," ","5440A"]
["5440B","Summer","Margaret Gifford School","Gifford Summer",5773.9020470549995,288.69510235274998,20,null,null,"No","5440B - Margaret Gifford School - Gifford Summer"," ","5440B"]
["5451A","Res Ed","Greenwood School","Greenwood School",75800,346.11872146118719,219,null,null,"No","5451A - Greenwood School - Greenwood School"," ","5451A"]
["5454C","Res Ed","Groden Center","Resid. Inten.",237198,649.85753424657537,365,null,null,"No","5454C - Groden Center - Resid. Inten."," ","5454C"]
["5454E","Day","Groden Center","Intensive Day Program 30 hours )",71098,314.59292035398232,226,null,null,"No","5454E - Groden Center - Intensive Day Program 30 hours )"," ","5454E"]
["5472A","Res","Grove","Grove School",136920,475.41666666666669,288,null,null,"No","5472A - Grove - Grove School"," ","5472A"]
["5488A","Day","Horace Mann","Darnell School",93391.123104919796,422.58426744307599,221,null,null,"No","5488A - Horace Mann - Darnell School"," ","5488A"]
["5495A","Res Ed","HMS School for Children with Cerebral Palsy","Residential Program 7 days",163300,628.07692307692309,260,null,null,"No","5495A - HMS School for Children with Cerebral Palsy - Residential Program 7 days"," ","5495A"]
["5495B","Day","HMS School for Children with Cerebral Palsy","Extended school Year",13770,510,27,null,null,"No","5495B - HMS School for Children with Cerebral Palsy - Extended school Year"," ","5495B"]
["5498B","Day","Lighthouse School","Comp. Services Prog.",73845.646658572499,410.25359254762498,180,null,null,"No","5498B - Lighthouse School - Comp. Services Prog."," ","5498B"]
["5530C","Day","Institute of Professional Practice","Durham Center for Ed.",87597.900273826803,405.54583460104999,216,null,null,"No","5530C - Institute of Professional Practice - Durham Center for Ed."," ","5530C"]
["5534A","Res Ed","Italian Home for Children, Inc.","Italian Home Res",190822.3224457521,522.80088341301951,365,null,null,"No","5534A - Italian Home for Children, Inc. - Italian Home Res"," ","5534A"]
["5534B","Day","Italian Home for Children, Inc.","Italian Home Day",83117.783603118223,377.80810728690102,220,null,null,"No","5534B - Italian Home for Children, Inc. - Italian Home Day"," ","5534B"]
["5579A","Day","Kennedy Donovan Center","Developmental Day",96046.649641153286,408.70914740916294,235,null,null,"No","5579A - Kennedy Donovan Center - Developmental Day"," ","5579A"]
["5582A","Day","Franciscan Children's Hospital","Kennedy Day",88302.038296334431,441.51019148167217,200,null,null,"No","5582A - Franciscan Children's Hospital - Kennedy Day"," ","5582A"]
["5607A","Day","Landmark Foundation","Landmark Day",54634.217598620162,303.52343110344532,180,null,null,"No","5607A - Landmark Foundation - Landmark Day"," ","5607A"]
["5607B","Res Ed","Landmark Foundation","Landmark Residential",72636.984471566349,302.65410196485976,240,null,null,"No","5607B - Landmark Foundation - Landmark Residential"," ","5607B"]
["5614A","Day","League School of Boston","Day Ed",84780.210573000004,392.500974875,216,null,null,"No","5614A - League School of Boston - Day Ed"," ","5614A"]
["5614B","Res Ed","League School of Boston","Fine House",182929.20120000001,501.17589369863015,365,null,null,"No","5614B - League School of Boston - Fine House"," ","5614B"]
["5617B","Res Ed","Learning Ctr. for the Deaf","Walden",333954.67826844007,914.9443240231235,365,null,null,"No","5617B - Learning Ctr. for the Deaf - Walden"," ","5617B"]
["5617G","Day","Learning Ctr. for the Deaf","Day",60227.031408235212,304.17692630421823,198,null,null,"No","5617G - Learning Ctr. for the Deaf - Day"," ","5617G"]
["5617H","Day","Learning Ctr. for the Deaf","Intensive Day",84985.969184810107,429.22206658995003,198,null,null,"No","5617H - Learning Ctr. for the Deaf - Intensive Day"," ","5617H"]
["5617I","Res Ed","Learning Ctr. for the Deaf","Residential",110235.96143002443,556.74727994961836,198,null,null,"No","5617I - Learning Ctr. for the Deaf - Residential"," ","5617I"]
["5620B","Day","Learning Clinic","Day",73386.39,317.69,231,null,null,"No","5620B - Learning Clinic - Day"," ","5620B"]
["5620E","Res Ed","Learning Clinic","Residential",145323.25,398.14589041095888,365,null,null,"No","5620E - Learning Clinic - Residential"," ","5620E"]
["5625A","Day","Learning Skills Academy, Inc.","Learning Skills Academy",45221.4,251.23000000000002,180,null,null,"No","5625A - Learning Skills Academy, Inc. - Learning Skills Academy"," ","5625A"]
["5625B","Day","Learning Skills Academy, Inc.","Summer",1974.4,123.4,16,null,null,{"$f":"IF(C128<>\"Summer\", \"No\", \"Yes\")","v":"No"},{"$f":"A128& \" - \"&C128 & \" - \"&D128","v":"5625B - Learning Skills Academy, Inc. - Summer"}," ",{"$f":"TRIM(A128)","v":"5625B"}]
["5643A","Day","Little People's School","Learning Prep School",43237.515160316696,240.20841755731499,180,null,null,"No","5643A - Little People's School - Learning Prep School"," ","5643A"]
["5685B","Res Ed","MAB Community Services","IVY Street School",224653.4136036018,615.48880439342963,365,null,null,"No","5685B - MAB Community Services - IVY Street School"," ","5685B"]
["5685C","Day","MAB Community Services","IVY Street School Day Program",99471.612754599308,404.35614940894027,246,null,null,"No","5685C - MAB Community Services - IVY Street School Day Program"," ","5685C"]
["5695A","Day","Justice Resource Institute"," Granite Day Ed",64668.108040229694,320.1391487140084,202,null,null,"No","5695A - Justice Resource Institute -  Granite Day Ed"," ","5695A"]
["5706B","Res Ed","May Institute","Randolph Res.",225311.79592109227,617.29259156463638,365,null,null,"No","5706B - May Institute - Randolph Res."," ","5706B"]
["5706E","Day","May Institute","Randolph Day",97657.806627000013,415.56513458297877,235,null,null,"No","5706E - May Institute - Randolph Day"," ","5706E"]
["5706G","Day","May Institute"," Brockton Rehabilitative D",116523.18123300001,495.84332439574473,235,null,null,"No","5706G - May Institute -  Brockton Rehabilitative D"," ","5706G"]
["5706H","Res Ed","May Institute","Brockton Rehabilitative R",252873.78937727102,692.80490240348229,365,null,null,"No","5706H - May Institute - Brockton Rehabilitative R"," ","5706H"]
["5706N","Day","May Institute","West Springfield",118393.937361,533.3060241486487,222,null,null,"No","5706N - May Institute - West Springfield"," ","5706N"]
["5709A","Day","McAuley Nazareth Home for Boys","Nazareth Day",34156.777825011595,158.13323067134999,216,null,null,"No","5709A - McAuley Nazareth Home for Boys - Nazareth Day"," ","5709A"]
["5709B","Res Ed","McAuley Nazareth Home for Boys","McAuley Nazareth",149184.2705473674,408.72402889689698,365,null,null,"No","5709B - McAuley Nazareth Home for Boys - McAuley Nazareth"," ","5709B"]
["5710B","Res Ed","Melmark Home, Inc.","Melmark N.E.",261536.49811117994,716.53835098953414,365,null,null,"No","5710B - Melmark Home, Inc. - Melmark N.E."," ","5710B"]
["5710C","Day","Melmark Home, Inc.","Melmark Day",113902.72337024743,480.6022083132803,237,null,null,"No","5710C - Melmark Home, Inc. - Melmark Day"," ","5710C"]
["5730A","Day","Meeting Street School","Basic",69700,315.38461538461536,221,null,null,"No","5730A - Meeting Street School - Basic"," ","5730A"]
["5730C","Day","Meeting Street School","Standard rate with 1 to 1 ",125065,565.90497737556564,221,null,null,"No","5730C - Meeting Street School - Standard rate with 1 to 1 "," ","5730C"]
["5734A","Day","Merrimac Heights Academy ","Merrimac Heights Academy Day Program",73706.679246670712,409.48155137039282,180,null,null,"No","5734A - Merrimac Heights Academy  - Merrimac Heights Academy Day Program"," ","5734A"]
["5752A","Day","Nashoba Learning Group, Inc.","Nashoba Learning ",108388.55970135001,501.79888750625003,216,null,null,"No","5752A - Nashoba Learning Group, Inc. - Nashoba Learning "," ","5752A"]
["5760A","Day","N. E. Adolescent Research Institute","N.E.A.R.I.",66443.895843687904,302.01770838039954,220,null,null,"No","5760A - N. E. Adolescent Research Institute - N.E.A.R.I."," ","5760A"]
["5785A","Day","Home for Little Wanderers"," Longview Day Program",78683.996197224973,359.28765386860721,219,null,null,"No","5785A - Home for Little Wanderers -  Longview Day Program"," ","5785A"]
["5785B","Res Ed","Home for Little Wanderers","Long View Residential Ed.",173333.62340431154,474.88663946386725,365,null,null,"No","5785B - Home for Little Wanderers - Long View Residential Ed."," ","5785B"]
["5788A","Day","New England Academy","NE Academy",63333.540464082296,319.86636598021363,198,null,null,"No","5788A - New England Academy - NE Academy"," ","5788A"]
["5811A","Day","Cutchins Programs for Children & Fam.","New Directions",57397.447706291096,263.29104452427106,218,null,null,"No","5811A - Cutchins Programs for Children & Fam. - New Directions"," ","5811A"]
["5885A","Day","Pathways Strategic Teaching Center","Pathways",78562.13,347.62004424778763,226,null,null,"No","5885A - Pathways Strategic Teaching Center - Pathways"," ","5885A"]
["5887A","Res Ed","Dr. Franklin Perkins School, Inc.","Intensive",208389.45806340751,570.93002209152746,365,null,null,"No","5887A - Dr. Franklin Perkins School, Inc. - Intensive"," ","5887A"]
["5887B","Day ","Dr. Franklin Perkins School, Inc.","Day Program",67098.423759289202,307.79093467563854,218,null,null,"No","5887B - Dr. Franklin Perkins School, Inc. - Day Program"," ","5887B"]
["5889B","Res Ed","Perkins School for the Blind","Blind",148211.0951203953,705.76711962092998,210,null,null,"No","5889B - Perkins School for the Blind - Blind"," ","5889B"]
["5889D","Day","Perkins School for the Blind","Blind",65344.917182584504,311.16627229802145,210,null,null,"No","5889D - Perkins School for the Blind - Blind"," ","5889D"]
["5889E","Res Ed","Perkins School for the Blind","Multi-Impaired",233269.7873208237,1110.8085110515415,210,null,null,"No","5889E - Perkins School for the Blind - Multi-Impaired"," ","5889E"]
["5889G","Res Ed","Perkins School for the Blind","Severely Impaired",319786.54430246819,1522.7930681069913,210,null,null,"No","5889G - Perkins School for the Blind - Severely Impaired"," ","5889G"]
["5889H","Res Ed","Perkins School for the Blind","Deaf/Blind/Multi-Impaired",285473.0915389377,1359.3956739949415,210,null,null,"No","5889H - Perkins School for the Blind - Deaf/Blind/Multi-Impaired"," ","5889H"]
["5889J","Day","Perkins School for the Blind","Deaf/Blind/Multi-Impaired",142736.54057570969,679.69781226528426,210,null,null,"No","5889J - Perkins School for the Blind - Deaf/Blind/Multi-Impaired"," ","5889J"]
["5889K","Day","Perkins School for the Blind","Multi-Impaired",116816.47267405501,556.26891749550009,210,null,null,"No","5889K - Perkins School for the Blind - Multi-Impaired"," ","5889K"]
["5889M","Day","Perkins School for the Blind","Severely Impaired",143465.5573850403,683.16932088114424,210,null,null,"No","5889M - Perkins School for the Blind - Severely Impaired"," ","5889M"]
["5915A","Day","Protestant Guild for Human Services/DBA The Guild for Human Services","Learning Center Day",95121.236990412901,406.50101277954229,234,null,null,"No","5915A - Protestant Guild for Human Services/DBA The Guild for Human Services - Learning Center Day"," ","5915A"]
["5915B","Res Ed","Protestant Guild for Human Services/DBA The Guild for Human Services","Learning Center Res",259225.46363521079,710.20674968550907,365,null,null,"No","5915B - Protestant Guild for Human Services/DBA The Guild for Human Services - Learning Center Res"," ","5915B"]
["5940A","Day","Realizing Children's Strengths","Intensive Day",125493.02128478879,567.84172527053749,221,null,null,"No","5940A - Realizing Children's Strengths - Intensive Day"," ","5940A"]
["5940B","Day","Realizing Children's Strengths","Day Ed.",90942.026752773905,411.50238349671451,221,null,null,"No","5940B - Realizing Children's Strengths - Day Ed."," ","5940B"]
["5947A","Res Ed","Camp Sunshine Day","Reed Academy",80174.346058030511,307.18140252118968,261,null,null,"No","5947A - Camp Sunshine Day - Reed Academy"," ","5947A"]
["5947C","Day","Camp Sunshine Day","Reed Academy Day",61146.116085431699,283.08387076588747,216,null,null,"No","5947C - Camp Sunshine Day - Reed Academy Day"," ","5947C"]
["5957C","Res Ed","Latham Centers, Inc.","Intensive",237733.77339879124,651.32540657203083,365,null,null,"No","5957C - Latham Centers, Inc. - Intensive"," ","5957C"]
["5969A","Day","Riverside Community Care","Riverside Life Skills",61473.447562101304,272.00640514204116,226,null,null,"No","5969A - Riverside Community Care - Riverside Life Skills"," ","5969A"]
["5975A","Day","Riverview School","Riverview Day",48132.593712000002,267.40329839999998,180,null,null,"No","5975A - Riverview School - Riverview Day"," ","5975A"]
["5975B","Res Ed","Riverview School","Riverview",82979.642592000018,340.0805024262296,244,null,null,"No","5975B - Riverview School - Riverview"," ","5975B"]
["5980A","Day","Northeast Center for Youth and Families","TCHS",51928.485906448819,288.49158836916013,180,null,null,"No","5980A - Northeast Center for Youth and Families - TCHS"," ","5980A"]
["5980B","Summer","Northeast Center for Youth and Families","Summer",11729.036397999396,378.35601283869022,31,null,null,"No","5980B - Northeast Center for Youth and Families - Summer"," ","5980B"]
["5985A","Res Ed","Wayside Youth and Family Support Ntwk.","Wayside BTR",176245.9786477836,482.86569492543452,365,null,null,"No","5985A - Wayside Youth and Family Support Ntwk. - Wayside BTR"," ","5985A"]
["5985C","Day","Wayside Youth and Family Support Ntwk.","Wayside Academy",56673.105280195494,257.60502400088859,220,null,null,"No","5985C - Wayside Youth and Family Support Ntwk. - Wayside Academy"," ","5985C"]
["5986C","Day","Willie Ross School for the Deaf","Day",57780.663234264008,321.00368463480004,180,null,null,"No","5986C - Willie Ross School for the Deaf - Day"," ","5986C"]
["5992D","Day","Justice Resource Institute","Anchor Academy",54165.132474325204,273.56127512285457,198,null,null,"No","5992D - Justice Resource Institute - Anchor Academy"," ","5992D"]
["5995B","Day","Youth Opportunities Upheld","Educational Prog.",39605.020785843299,183.35657771223748,216,null,null,"No","5995B - Youth Opportunities Upheld - Educational Prog."," ","5995B"]
["5995C","Res Ed","Youth Opportunities Upheld","Cottage Hill Academy",190897.70824767149,523.00741985663421,365,null,null,"No","5995C - Youth Opportunities Upheld - Cottage Hill Academy"," ","5995C"]
["5997F","Res Ed","Justice Resource Institute","Meadowridge",202500.1195254846,554.79484801502633,365,null,null,"No","5997F - Justice Resource Institute - Meadowridge"," ","5997F"]
["6002B","Res Ed","Saint Ann's Home, Inc.","St. Ann's Residential",181370.94126408271,496.90668839474716,365,null,null,"No","6002B - Saint Ann's Home, Inc. - St. Ann's Residential"," ","6002B"]
["6002C","Day","Saint Ann's Home, Inc.","St. Ann's Day School",52259.646117373202,290.33136731874004,180,null,null,"No","6002C - Saint Ann's Home, Inc. - St. Ann's Day School"," ","6002C"]
["6002D","Summer","Saint Ann's Home, Inc.","Summer Day",8645.7911690474994,240.16086580687499,36,null,null,"No","6002D - Saint Ann's Home, Inc. - Summer Day"," ","6002D"]
["6006B","Res Ed","Youth Villages-Germaine Lawrence, Inc.","Intensive Treatment",194774.85984066481,533.62975298812273,365,null,null,"No","6006B - Youth Villages-Germaine Lawrence, Inc. - Intensive Treatment"," ","6006B"]
["6006D","Day","Youth Villages-Germaine Lawrence, Inc.","Day Education",60584.733046426503,280.48487521493752,216,null,null,"No","6006D - Youth Villages-Germaine Lawrence, Inc. - Day Education"," ","6006D"]
["6012A","Day","Cardinal Cushing School & Training Ctr.","Braintree St. Coletta",76287.783373457394,353.18418228452498,216,null,null,"No","6012A - Cardinal Cushing School & Training Ctr. - Braintree St. Coletta"," ","6012A"]
["6040A","Res Ed","St. Vincent's Home","St. Vincent's Home",176094.0715801644,482.44951117853259,365,null,null,"No","6040A - St. Vincent's Home - St. Vincent's Home"," ","6040A"]
["6040C","Day","St. Vincent's Home","Spec. Ed. Day",59099.515292374192,273.60886709432498,216,null,null,"No","6040C - St. Vincent's Home - Spec. Ed. Day"," ","6040C"]
["6052A","Day","Willow Hill School","Willow Hill School",53864.580019832996,299.24766677685,180,null,null,"No","6052A - Willow Hill School - Willow Hill School"," ","6052A"]
["6054A","Day","Meeting Street School ","Meeting Street school",57342.010559997776,253.72571044246803,226,null,null,"No","6054A - Meeting Street School  - Meeting Street school"," ","6054A"]
["6056A","Day","SD Associates","Fine House",110509.612548,458.54611015767637,241,null,null,"No","6056A - SD Associates - Fine House"," ","6056A"]
["6059A","Day","Northeast Behavioral Health","Solstice Day Program",70645.237724999999,327.06128576388886,216,null,null,{"$f":"IF(C192<>\"Summer\", \"No\", \"Yes\")","v":"No"},{"$f":"A192& \" - \"&C192 & \" - \"&D192","v":"6059A - Northeast Behavioral Health - Solstice Day Program"}," ",{"$f":"TRIM(A192)","v":"6059A"}]
["6120A","RES Ed","Seven Hills Foundation, Inc.","Stetson School",200084.75144525879,548.17740121988709,365,null,null,"No","6120A - Seven Hills Foundation, Inc. - Stetson School"," ","6120A"]
["6121A","Res Ed","Stevens Children's Home","Stevens Home  Day Program",177789.67812986491,487.09500857497238,365,null,null,"No","6121A - Stevens Children's Home - Stevens Home  Day Program"," ","6121A"]
["6121B","Day","Stevens Children's Home","Stevens Home",60348.967543571402,269.41503367665803,224,null,null,"No","6121B - Stevens Children's Home - Stevens Home"," ","6121B"]
["6124I","Res Ed","Wediko Children's Services","Winter/Diag.",138316.54999999999,378.94945205479451,365,null,null,"No","6124I - Wediko Children's Services - Winter/Diag."," ","6124I"]
["6125A","Day","Summit Academy","Sch. for Alt. Learners",44112.928050000002,222.79256590909091,198,null,null,"No","6125A - Summit Academy - Sch. for Alt. Learners"," ","6125A"]
["6185A","Day","Valley West Day School","Valley West Day School",50267.25,279.26249999999999,180,null,null,"No","6185A - Valley West Day School - Valley West Day School"," ","6185A"]
["6185B","Summer","Valley West Day School","Valley West Summer",5991.4500000000007,199.71500000000003,30,null,null,"No","6185B - Valley West Day School - Valley West Summer"," ","6185B"]
["6245A","Day","Walker, Inc.","Walker School",89322.768462578388,413.53133547489995,216,null,null,"No","6245A - Walker, Inc. - Walker School"," ","6245A"]
["6245C","Res Ed","Walker, Inc.","Intensive",247362.21138536639,677.70468872703123,365,null,null,"No","6245C - Walker, Inc. - Intensive"," ","6245C"]
["6245D","Day","Walker, Inc.","Beacon High School",57614.609163870904,290.98287456500458,198,null,null,"No","6245D - Walker, Inc. - Beacon High School"," ","6245D"]
["6252A","Res Ed","R. F. Kennedy Action Corps","RFK Lancaster Program",190738.18712913839,522.57037569626959,365,null,null,"No","6252A - R. F. Kennedy Action Corps - RFK Lancaster Program"," ","6252A"]
["6252B","Day","R. F. Kennedy Action Corps","RFK Lancaster Day",60149.215566662395,278.46859058639996,216,null,null,"No","6252B - R. F. Kennedy Action Corps - RFK Lancaster Day"," ","6252B"]
["6257B","Res Ed","Whitney Academy, Inc.","Intensive",245637.53017194418,672.97953471765527,365,null,null,"No","6257B - Whitney Academy, Inc. - Intensive"," ","6257B"]
["6263A","Day","Wolf School","Wolf School",54000,327.27272727272725,165,null,null,"No","6263A - Wolf School - Wolf School"," ","6263A"]
["6276C","Res Ed","Becket","Belgrade",255371.2,699.64712328767132,365,null,null,"No","6276C - Becket - Belgrade"," ","6276C"]
["6276H","Res Ed","Becket","Mount Prospect Academy/Campton",169073.46,463.21495890410955,365,null,null,"No","6276H - Becket - Mount Prospect Academy/Campton"," ","6276H"]
["6276I","Res Ed","Becket","Mount Prospect Academy/Rummey",162707.85,445.77493150684933,365,null,null,"No","6276I - Becket - Mount Prospect Academy/Rummey"," ","6276I"]
["6276J","Res Ed","Becket","Mount Prospect Academy/Pike East Haverhill",161225.95000000001,441.71493150684933,365,null,null,"No","6276J - Becket - Mount Prospect Academy/Pike East Haverhill"," ","6276J"]
["6276M","Res Ed","Becket","Mount Prospect Academy/ Depot Street",275335.90000000002,754.34493150684943,365,null,null,"No","6276M - Becket - Mount Prospect Academy/ Depot Street"," ","6276M"]
["6276N","Res Ed","Becket","Mount Prospect Academy/Plymouth",157666.79999999999,431.9638356164383,365,null,null,"No","6276N - Becket - Mount Prospect Academy/Plymouth"," ","6276N"]
["6276P","Res Ed","Becket","Vermont School for Girls",129921.75,355.95,365,null,null,"No","6276P - Becket - Vermont School for Girls"," ","6276P"]
["6276S ","Res Ed","Becket","Green Meadows ",295102.5,808.5,365]
["6276T ","Res Ed","Becket","Intensive Residential",200056.5,548.1,365]